{"text_format":"1","workbook":"xlsx","n_sheets":5,"sheets":["Notes","Areas","Trusts","Categories","BS"],"not_rendered":{"charts":0,"images":0,"macros":1,"external_links":1,"defined_names":7,"comments":0,"pivot_tables":0},"unopened":[],"bounds":{"document_bytes":16777216,"sheet_cells":100000,"rows_first":2000,"rows_last":500,"rows_between":2000,"halvings":0,"cell_chars":16384,"cell_head_chars":4096},"cells_cut":0,"cells_raw":0,"read":"whole","date_system":"1900"}

{"sheet":"Notes","index":0,"n_rows":3,"n_cols":7,"rows_kept":3,"cut":false,"hidden":false,"merged":[]}
[]
[" Mental Health Friends and Family Test (FFT) data - January 2015"]
[null,null,null,null,null,null,"     Show data for:"]

{"sheet":"Areas","index":1,"n_rows":40,"n_cols":14,"rows_kept":40,"cut":false,"hidden":false,"merged":[[9,8,9,13],[9,1,10,1],[9,2,10,2],[9,3,10,3],[9,4,10,4],[9,5,10,5],[9,6,10,6]]}
[null,"Friends and Family Test - Mental Health                   January 2015",null,null,null,null,null,"Contact: FFT data team - england.friendsandfamilytest@nhs.net"]
[]
[]
[null,null,"Show data for:",null,null,null,null,null,"(Collection mode data is shown with Trusts data)"]
[]
[null,null,null,null,null,"Area:"]
[null,null,"      Sort data by:           ",null,null,"     Filter data by -    Trust:","   N/A"]
[null,null,null,null,null,"Category:","   N/A"]
[]
[null,"Area Team Code","Area Team Name","Total Responses","Total Eligible","Percentage Recommended","Percentage Not  Recommended",null,"Breakdown of Responses"]
[null,null,null,null,null,null,null,null,"Extremely Likely","Likely","Neither","Unlikely","Extremely Unlikely","Don't Know"]
[null,null,"England (including Independent Sector Providers)",13627,612145,0.8607910765392236,4.6745431863212741E-2,null,7921,3809,763,315,322,497]
[null,null,"England (excluding Independent Sector Providers)",12957,606809,0.85853206760824263,4.6924442386354868E-2,null,7479,3645,744,296,312,481]
[null,null,"Selection (excluding suppressed data)",{"$f":"SUBTOTAL(9,D15:D40)","v":13627},{"$f":"SUBTOTAL(9,E15:E40)","v":612145},{"$f":"IFERROR((I14+J14)/SUM(I14:N14),\"\")","v":0.8607910765392236},{"$f":"IFERROR((L14+M14)/SUM(I14:N14),\"\")","v":4.6745431863212741E-2},null,{"$f":"SUBTOTAL(9,I15:I40)","v":7921},{"$f":"SUBTOTAL(9,J15:J40)","v":3809},763,315,322,497]
[null,"Q44","Cheshire, Warrington And Wirral Area Team",476,20903,0.89075630252100846,3.1512605042016806E-2,null,312,112,16,5,10,21]
[null,"Q45","Durham, Darlington And Tees Area Team",783,52085,0.86717752234993617,5.4916985951468711E-2,null,375,304,37,25,18,24]
[null,"Q46","Greater Manchester Area Team",1012,21209,0.88636363636363635,3.8537549407114624E-2,null,675,222,40,18,21,36]
[null,"Q47","Lancashire Area Team",601,16750,0.84692179700499171,7.1547420965058242E-2,null,325,184,40,21,22,9]
[null,"Q48","Merseyside Area Team",276,16764,0.88405797101449279,3.2608695652173912E-2,null,141,103,23,5,4,0]
[null,"Q49","Cumbria, Northumberland, Tyne And Wear Area Team",452,23853,0.91814159292035402,1.1061946902654867E-2,null,306,109,12,1,4,20]
[null,"Q50","North Yorkshire And Humber Area Team",142,4453,0.90845070422535212,5.6338028169014086E-2,null,102,27,3,2,6,2]
[null,"Q51","South Yorkshire And Bassetlaw Area Team",50,15722,0.94,0,null,40,7,3,0,0,0]
[null,"Q52","West Yorkshire Area Team",495,45290,0.84646464646464648,8.2828282828282834E-2,null,296,123,17,24,17,18]
[null,"Q53","Arden, Herefordshire And Worcestershire Area Team",57,7945,0.80701754385964908,7.0175438596491224E-2,null,25,21,4,2,2,3]
[null,"Q54","Birmingham And The Black Country Area Team",792,32291,0.86489898989898994,3.4090909090909088E-2,null,408,277,34,11,16,46]
[null,"Q55","Derbyshire And Nottinghamshire Area Team",288,36007,0.89583333333333337,5.5555555555555552E-2,null,198,60,8,7,9,6]
[null,"Q56","East Anglia Area Team",417,8909,0.84412470023980812,3.117505995203837E-2,null,212,140,30,9,4,22]
[null,"Q57","Essex Area Team",77,15134,0.94805194805194803,2.5974025974025976E-2,null,55,18,2,0,2,0]
[null,"Q58","Hertfordshire And The South Midlands Area Team",633,34753,0.79146919431279616,5.3712480252764615E-2,null,304,197,44,19,15,54]
[null,"Q59","Leicestershire And Lincolnshire Area Team",726,14755,0.95041322314049592,9.6418732782369149E-3,null,533,157,15,2,5,14]
[null,"Q60","Shropshire And Staffordshire Area Team",210,12794,0.8666666666666667,4.7619047619047616E-2,null,110,72,9,4,6,9]
[null,"Q64","Bath, Gloucestershire, Swindon And Wiltshire Area Team",880,13559,0.88409090909090904,2.8409090909090908E-2,null,541,237,49,15,10,28]
[null,"Q65","Bristol, North Somerset, Somerset And South Gloucestershire Area Team",58,58,0.7068965517241379,0.13793103448275862,null,30,11,6,5,3,3]
[null,"Q66","Devon, Cornwall And Isles Of Scilly Area Team",164,16959,0.76219512195121952,0.12195121951219512,null,82,43,10,7,13,9]
[null,"Q67","Kent And Medway Area Team",117,12985,0.90598290598290598,1.7094017094017096E-2,null,81,25,8,1,1,1]
[null,"Q68","Surrey And Sussex Area Team",656,29562,0.87804878048780488,5.9451219512195119E-2,null,353,223,30,18,21,11]
[null,"Q69","Thames Valley Area Team",301,16323,0.83056478405315615,7.6411960132890366E-2,null,145,105,17,11,12,11]
[null,"Q70","Wessex Area Team",869,32708,0.85270425776754888,1.8411967779056387E-2,null,654,87,103,9,7,9]
[null,"Q71","London Area Team",2425,105038,0.80701030927835049,6.5567010309278348E-2,null,1176,781,184,75,84,125]
[null,"IS1","Independent Sector Provider",670,5336,0.90447761194029852,4.3283582089552242E-2,null,442,164,19,19,10,16]

{"sheet":"Trusts","index":2,"n_rows":84,"n_cols":23,"rows_kept":84,"cut":false,"hidden":false,"merged":[[9,17,10,17],[9,18,10,18],[9,19,10,19],[9,20,10,20],[9,21,10,21],[9,22,10,22],[8,16,8,22],[9,1,10,1],[9,2,10,2],[9,3,10,3],[9,4,10,4],[9,5,10,5],[9,6,10,6],[9,7,10,7],[9,9,9,14],[9,16,10,16]]}
[null,"Friends and Family Test - Mental Health                   January 2015",null,null,null,null,null,"Contact: FFT data team - england.friendsandfamilytest@nhs.net"]
[]
[]
[null,null,null,"Show data for:",null,null,null,null,null,"(Collection mode data is shown with Trusts data)"]
[]
[null,null,null,null,null,null,"Area:"]
[null,null,"      Sort data by:           ",null,null,null,"     Filter data by -    Trust:"]
[null,null,null,null,null,null,"Category:","   N/A"]
[null,null,null,null,null,null,null,null,null,null,null,null,null,null,null,null,"Mode of Collection"]
[null,"Area Team Code","Trust Code","Trust Name","Total Responses","Total Eligible","Percentage Recommended","Percentage Not  Recommended",null,"Breakdown of Responses",null,null,null,null,null,null,"SMS/Text / Smartphone App","Electronic tablet/kiosk in care or at discharge","Paper / postcard in care or at discharge","Paper survey sent to the patients home","Telephone survey once patient is home","Online survey once patient is home","Other"]
[null,null,null,null,null,null,null,null,null,"Extremely Likely","Likely","Neither","Unlikely","Extremely Unlikely","Don't Know"]
[null,null,null,"England (including Independent Sector Providers)",13627,612145,0.8607910765392236,4.6745431863212741E-2,null,7921,3809,763,315,322,497,null,{"$f":" SUM(Q15:Q200)","v":191},{"$f":" SUM(R15:R200)","v":3366},6872,1009,105,1298,563]
[null,null,null,"England (excluding Independent Sector Providers)",12957,606809,0.85853206760824263,4.6924442386354868E-2,null,7479,3645,744,296,312,481,null,{"$f":"SUMIF($B:$B,\"<>IS1\",Q15:Q200)","v":191},3366,6872,1009,105,1298,563]
[null,null,null,"Selection (excluding suppressed data)",{"$f":"SUBTOTAL(9,E15:E301)","v":13627},{"$f":"SUBTOTAL(9,F15:F301)","v":612145},{"$f":"IFERROR((J14+K14)/SUM(J14:O14),\"\")","v":0.86280214861235449},{"$f":"IFERROR((M14+N14)/SUM(J14:O14),\"\")","v":4.5061175768427338E-2},null,{"$f":"SUBTOTAL(9,J15:J301)","v":7829},3736,742,301,303,493,null,{"$f":"SUBTOTAL(9,Q15:Q301)","v":191},3366,6872,1009,105,1298,563]
[null,"Q44","RTV","5 BOROUGHS PARTNERSHIP NHS FOUNDATION TRUST",423,9441,0.900709219858156,3.0732860520094562E-2,null,288,93,13,3,10,16,null,15,67,341,0,0,0,0]
[null,"Q44","RXA","CHESHIRE AND WIRRAL PARTNERSHIP NHS FOUNDATION TRUST",53,11462,0.81132075471698117,3.7735849056603772E-2,null,24,19,3,2,0,5,null,0,0,53,0,0,0,0]
[null,"Q45","RX3","TEES, ESK AND WEAR VALLEYS NHS FOUNDATION TRUST",783,52085,0.86717752234993617,5.4916985951468711E-2,null,375,304,37,25,18,24,null,0,316,420,0,0,0,47]
[null,"Q46","RXV","GREATER MANCHESTER WEST MENTAL HEALTH NHS FOUNDATION TRUST",224,13673,0.9017857142857143,3.5714285714285712E-2,null,150,52,8,6,2,6,null,0,61,148,15,0,0,0]
[null,"Q46","TAE","MANCHESTER MENTAL HEALTH AND SOCIAL CARE TRUST",261,7009,0.87739463601532564,4.9808429118773943E-2,null,180,49,13,8,5,6,null,0,0,261,0,0,0,0]
[null,"Q46","RT2","PENNINE CARE NHS FOUNDATION TRUST",527,527,0.88425047438330173,3.4155597722960153E-2,null,345,121,19,4,14,24,null,0,63,464,0,0,0,0]
[null,"Q47","RXL","BLACKPOOL TEACHING HOSPITALS NHS FOUNDATION TRUST",1,1959,"*","*",null,"*","*","*","*","*","*",null,"*","*","*","*","*","*","*"]
[null,"Q47","RJX","CALDERSTONES PARTNERSHIP NHS FOUNDATION TRUST",145,204,0.73793103448275865,0.17241379310344829,null,"*","*","*","*","*","*",null,"*","*","*","*","*","*","*"]
[null,"Q47","RW5","LANCASHIRE CARE NHS FOUNDATION TRUST",455,14587,0.88351648351648349,3.9560439560439559E-2,null,268,134,26,10,8,9,null,0,0,455,0,0,0,0]
[null,"Q48","RW4","MERSEY CARE NHS TRUST",276,16764,0.88405797101449279,3.2608695652173912E-2,null,141,103,23,5,4,0,null,0,276,0,0,0,0,0]
[null,"Q49","RNN","CUMBRIA PARTNERSHIP NHS FOUNDATION TRUST",48,3759,0.95833333333333337,0,null,32,14,0,0,0,2,null,0,26,22,0,0,0,0]
[null,"Q49","RR7","GATESHEAD HEALTH NHS FOUNDATION TRUST",58,321,1,0,null,56,2,0,0,0,0,null,0,0,58,0,0,0,0]
[null,"Q49","RX4","NORTHUMBERLAND, TYNE AND WEAR NHS FOUNDATION TRUST",174,18583,0.83908045977011492,1.7241379310344827E-2,null,80,66,8,1,2,17,null,0,0,0,165,0,9,0]
[null,"Q49","RTF","NORTHUMBRIA HEALTHCARE NHS FOUNDATION TRUST",44,617,0.95454545454545459,2.2727272727272728E-2,null,32,10,1,0,1,0,null,0,0,44,0,0,0,0]
[null,"Q49","RE9","SOUTH TYNESIDE NHS FOUNDATION TRUST",128,573,0.9609375,7.8125E-3,null,106,17,3,0,1,1,null,0,0,128,0,0,0,0]
[null,"Q50","RV9","HUMBER NHS FOUNDATION TRUST",142,4453,0.90845070422535212,5.6338028169014086E-2,null,102,27,3,2,6,2,null,0,5,136,0,0,1,0]
[null,"Q51","TAH","SHEFFIELD HEALTH & SOCIAL CARE NHS FOUNDATION TRUST",50,15722,0.94,0,null,40,7,3,0,0,0,null,0,0,50,0,0,0,0]
[null,"Q52","TAD","BRADFORD DISTRICT CARE TRUST",44,8610,0.79545454545454541,6.8181818181818177E-2,null,22,13,4,2,1,2,null,0,14,22,0,0,8,0]
[null,"Q52","RGD","LEEDS AND YORK PARTNERSHIP NHS FOUNDATION TRUST",56,12934,0.8571428571428571,0.14285714285714285,null,30,18,0,4,4,0,null,0,0,0,56,0,0,0]
[null,"Q52","RY6","LEEDS COMMUNITY HEALTHCARE NHS TRUST",146,8751,0.8904109589041096,6.1643835616438353E-2,null,99,31,5,4,5,2,null,0,0,146,0,0,0,0]
[null,"Q52","RXG","SOUTH WEST YORKSHIRE PARTNERSHIP NHS FOUNDATION TRUST",249,14995,0.82730923694779113,8.4337349397590355E-2,null,145,61,8,14,7,14,null,0,25,224,0,0,0,0]
[null,"Q53","RYG","COVENTRY AND WARWICKSHIRE PARTNERSHIP NHS TRUST",53,4451,0.81132075471698117,5.6603773584905662E-2,null,"*","*","*","*","*","*",null,"*","*","*","*","*","*","*"]
[null,"Q53","R1A","WORCESTERSHIRE HEALTH AND CARE NHS TRUST",4,3494,"*","*",null,"*","*","*","*","*","*",null,"*","*","*","*","*","*","*"]
[null,"Q54","RXT","BIRMINGHAM AND SOLIHULL MENTAL HEALTH NHS FOUNDATION TRUST",584,18977,0.86130136986301364,4.2808219178082189E-2,null,313,190,27,10,15,29,null,0,436,148,0,0,0,0]
[null,"Q54","TAJ","BLACK COUNTRY PARTNERSHIP NHS FOUNDATION TRUST",67,7310,0.91044776119402981,2.9850746268656716E-2,null,39,22,3,1,1,1,null,0,0,0,67,0,0,0]
[null,"Q54","RYK","DUDLEY AND WALSALL MENTAL HEALTH PARTNERSHIP NHS TRUST",141,6004,0.85815602836879434,0,null,56,65,4,0,0,16,null,0,0,0,0,0,0,141]
[null,"Q55","RXM","DERBYSHIRE HEALTHCARE NHS FOUNDATION TRUST",18,9765,0.55555555555555558,0.22222222222222221,null,4,6,1,1,3,3,null,0,0,0,0,0,18,0]
[null,"Q55","RHA","NOTTINGHAMSHIRE HEALTHCARE NHS FOUNDATION TRUST",270,26242,0.91851851851851851,4.4444444444444446E-2,null,194,54,7,6,6,3,null,0,0,268,0,0,2,0]
[null,"Q56","RT1","CAMBRIDGESHIRE AND PETERBOROUGH NHS FOUNDATION TRUST",417,8909,0.84412470023980812,3.117505995203837E-2,null,212,140,30,9,4,22,null,0,314,103,0,0,0,0]
[null,"Q57","RWN","SOUTH ESSEX PARTNERSHIP UNIVERSITY NHS FOUNDATION TRUST",77,15134,0.94805194805194803,2.5974025974025976E-2,null,55,18,2,0,2,0,null,0,0,0,77,0,0,0]
[null,"Q58","RY4","HERTFORDSHIRE COMMUNITY NHS TRUST",57,308,0.98245614035087714,0,null,37,19,1,0,0,0,null,0,0,0,57,0,0,0]
[null,"Q58","RWR","HERTFORDSHIRE PARTNERSHIP UNIVERSITY NHS FOUNDATION TRUST",222,29797,0.72522522522522526,7.2072072072072071E-2,null,85,76,13,9,7,32,null,0,0,218,0,0,4,0]
[null,"Q58","RP1","NORTHAMPTONSHIRE HEALTHCARE NHS FOUNDATION TRUST",354,4648,0.80225988700564976,5.0847457627118647E-2,null,182,102,30,10,8,22,null,0,9,343,0,0,2,0]
[null,"Q59","RT5","LEICESTERSHIRE PARTNERSHIP NHS TRUST",331,10713,0.93051359516616317,1.2084592145015106E-2,null,215,93,6,1,3,13,null,0,0,310,0,0,1,20]
[null,"Q59","RP7","LINCOLNSHIRE PARTNERSHIP NHS FOUNDATION TRUST",395,4042,0.96708860759493676,7.5949367088607592E-3,null,318,64,9,1,2,1,null,0,33,362,0,0,0,0]
[null,"Q60","RLY","NORTH STAFFORDSHIRE COMBINED HEALTHCARE NHS TRUST",39,396,0.82051282051282048,0,null,19,13,3,0,0,4,null,0,0,39,0,0,0,0]
[null,"Q60","R1D","SHROPSHIRE COMMUNITY HEALTH NHS TRUST",36,1196,0.80555555555555558,0.1111111111111111,null,25,4,1,1,3,2,null,0,0,36,0,0,0,0]
[null,"Q60","RRE","SOUTH STAFFORDSHIRE AND SHROPSHIRE HEALTHCARE NHS FOUNDATION TRUST",135,11202,0.89629629629629626,4.4444444444444446E-2,null,66,55,5,3,3,3,null,0,0,117,18,0,0,0]
[null,"Q64","RTQ","2GETHER NHS FOUNDATION TRUST",269,8442,0.8810408921933085,2.6022304832713755E-2,null,147,90,16,3,4,9,null,79,190,0,0,0,0,0]
[null,"Q64","RVN","AVON AND WILTSHIRE MENTAL HEALTH PARTNERSHIP NHS TRUST",611,5117,0.88543371522094927,2.9459901800327332E-2,null,394,147,33,12,6,19,null,0,91,20,296,0,204,0]
[null,"Q65","RH5","SOMERSET PARTNERSHIP NHS FOUNDATION TRUST",58,58,0.7068965517241379,0.13793103448275862,null,30,11,6,5,3,3,null,0,0,58,0,0,0,0]
[null,"Q66","RJ8","CORNWALL PARTNERSHIP NHS FOUNDATION TRUST",126,9824,0.83333333333333337,7.1428571428571425E-2,null,68,37,7,4,5,5,null,0,24,27,31,0,44,0]
[null,"Q66","RWV","DEVON PARTNERSHIP NHS TRUST",38,7135,0.52631578947368418,0.28947368421052633,null,14,6,3,3,8,4,null,0,0,29,0,0,9,0]
[null,"Q67","RXY","KENT AND MEDWAY NHS AND SOCIAL CARE PARTNERSHIP TRUST",117,12985,0.90598290598290598,1.7094017094017096E-2,null,81,25,8,1,1,1,null,0,5,112,0,0,0,0]
[null,"Q68","RXX","SURREY AND BORDERS PARTNERSHIP NHS FOUNDATION TRUST",255,9611,0.82352941176470584,9.4117647058823528E-2,null,128,82,14,14,10,7,null,0,244,0,0,0,11,0]
[null,"Q68","RX2","SUSSEX PARTNERSHIP NHS FOUNDATION TRUST",401,19951,0.91271820448877805,3.7406483790523692E-2,null,225,141,16,4,11,4,null,95,306,0,0,0,0,0]
[null,"Q69","RWX","BERKSHIRE HEALTHCARE NHS FOUNDATION TRUST",70,4206,0.91428571428571426,4.2857142857142858E-2,null,50,14,3,0,3,0,null,2,0,1,67,0,0,0]
[null,"Q69","RNU","OXFORD HEALTH NHS FOUNDATION TRUST",231,12117,0.80519480519480524,8.6580086580086577E-2,null,95,91,14,11,9,11,null,0,221,0,9,0,1,0]
[null,"Q70","RDY","DORSET HEALTHCARE UNIVERSITY NHS FOUNDATION TRUST",377,9580,0.96816976127320953,1.0610079575596816E-2,null,306,59,5,1,3,3,null,0,9,271,0,67,30,0]
[null,"Q70","R1F","ISLE OF WIGHT NHS TRUST",27,3083,0.92592592592592593,0,null,16,9,2,0,0,0,null,0,0,27,0,0,0,0]
[null,"Q70","R1C","SOLENT NHS TRUST",98,7079,0.93877551020408168,1.020408163265306E-2,null,76,16,4,0,1,1,null,0,0,98,0,0,0,0]
[null,"Q70","RW1","SOUTHERN HEALTH NHS FOUNDATION TRUST",367,12966,0.70572207084468663,2.9972752043596729E-2,null,256,3,92,8,3,5,null,0,0,215,0,0,152,0]
[null,"Q71","RRP","BARNET, ENFIELD AND HARINGEY MENTAL HEALTH NHS TRUST",737,8724,0.80597014925373134,5.9701492537313432E-2,null,321,273,64,24,20,35,null,0,35,0,0,0,702,0]
[null,"Q71","TAF","CAMDEN AND ISLINGTON NHS FOUNDATION TRUST",18,10086,0.83333333333333337,0.1111111111111111,null,10,5,0,0,2,1,null,0,0,0,0,0,18,0]
[null,"Q71","RV3","CENTRAL AND NORTH WEST LONDON NHS FOUNDATION TRUST",151,15934,0.83443708609271527,7.9470198675496692E-2,null,76,50,5,2,10,8,null,0,0,0,151,0,0,0]
[null,"Q71","RWK","EAST LONDON NHS FOUNDATION TRUST",109,297,0.78899082568807344,2.7522935779816515E-2,null,56,30,17,3,0,3,null,0,79,30,0,0,0,0]
[null,"Q71","RAT","NORTH EAST LONDON NHS FOUNDATION TRUST",229,14169,0.85152838427947597,3.9301310043668124E-2,null,114,81,19,5,4,6,null,0,8,141,0,38,42,0]
[null,"Q71","RPG","OXLEAS NHS FOUNDATION TRUST",307,5858,0.82084690553745931,5.2117263843648211E-2,null,166,86,19,9,7,20,null,0,102,205,0,0,0,0]
[null,"Q71","RV5","SOUTH LONDON AND MAUDSLEY NHS FOUNDATION TRUST",423,32005,0.78959810874704495,8.0378250591016553E-2,null,187,147,34,22,12,21,null,0,339,67,0,0,17,0]
[null,"Q71","RQY","SOUTH WEST LONDON AND ST GEORGE'S MENTAL HEALTH NHS TRUST",16,8368,0.5,0.25,null,"*","*","*","*","*","*",null,"*","*","*","*","*","*","*"]
[null,"Q71","RNK","TAVISTOCK AND PORTMAN NHS FOUNDATION TRUST",80,1977,0.91249999999999998,1.2500000000000001E-2,null,68,5,0,1,0,6,null,0,0,80,0,0,0,0]
[null,"Q71","RRV","UNIVERSITY COLLEGE LONDON HOSPITALS NHS FOUNDATION TRUST",4,6,"*","*",null,"*","*","*","*","*","*",null,"*","*","*","*","*","*","*"]
[null,"Q71","RKL","WEST LONDON MENTAL HEALTH NHS TRUST",351,7614,0.76923076923076927,9.686609686609686E-2,null,168,102,23,8,26,24,null,0,0,351,0,0,0,0]
[null,"IS1","NVR","ALPHA HOSPITALS",18,232,0.5,0.22222222222222221,null,6,3,3,1,3,2,null,0,0,18,0,0,0,0]
[null,"IS1","NWX","BRIGHTON & HOVE INTEGRATED CARE SERVICE",23,727,1,0,null,20,3,0,0,0,0,null,0,0,12,0,0,11,0]
[null,"IS1","NNF","CITY HEALTH CARE PARTNERSHIP CIC",198,1536,0.97979797979797978,5.0505050505050509E-3,null,156,38,0,1,0,3,null,0,11,187,0,0,0,0]
[null,"IS1","NMJ","CYGNET HEALTH CARE LIMITED",38,400,0.5,0.26315789473684209,null,5,14,4,5,5,5,null,0,38,0,0,0,0,0]
[null,"IS1","NQL","NAVIGO",355,2378,0.92676056338028168,3.6619718309859155E-2,null,234,95,8,11,2,5,null,0,0,0,0,0,0,355]
[null,"IS1","NR5","PLYMOUTH COMMUNITY HEALTHCARE (CIC)",33,58,0.81818181818181823,3.0303030303030304E-2,null,17,10,4,1,0,1,null,0,19,2,0,0,12,0]
[null,"IS1","NDK","YARBOROUGH CLEE CARE LIMITED",5,5,1,0,null,4,1,0,0,0,0,null,0,0,5,0,0,0,0]

{"sheet":"Categories","index":3,"n_rows":284,"n_cols":15,"rows_kept":284,"cut":false,"hidden":false,"merged":[[9,7,10,7],[9,9,9,14],[9,1,10,1],[9,2,10,2],[9,3,10,3],[9,4,10,4],[9,5,10,5],[9,6,10,6]]}
[null,"Friends and Family Test - Mental Health                   January 2015",null,null,null,null,"Contact: FFT data team - england.friendsandfamilytest@nhs.net"]
[]
[]
[null,null,null,"                                                        Show data for:",null,null,null,"     (Collection mode data is shown with Trusts data)"]
[]
[null,null,null,null,null,"Area:"]
[null,null,"      Sort data by:           ",null,null,"     Filter data by -    Trust:"]
[null,null,null,null,null,"Category:"]
[]
[null,"Area Team Code","Trust Code","Trust Name","Category","Total Responses","Percentage Recommended","Percentage Not  Recommended",null,"Breakdown of Responses"]
[null,null,null,null,null,null,null,null,null,"Extremely Likely","Likely","Neither","Unlikely","Extremely Unlikely","Don't Know"]
[null,null,null,null,"England (including Independent Sector Providers)",13627,0.8607910765392236,4.6745431863212741E-2,null,7921,3809,763,315,322,497]
[null,null,null,null,"England (excluding Independent Sector Providers)",12957,0.85853206760824263,4.6924442386354868E-2,null,7479,3645,744,296,312,481]
[null,null,null,null,"Selection (excluding suppressed data)",{"$f":"SUBTOTAL(9,F15:F501)","v":13627},{"$f":"IFERROR((J14+K14)/SUM(J14:O14),\"\")","v":0.8641128410667489},{"$f":"IFERROR((M14+N14)/SUM(J14:O14),\"\")","v":4.4242330815477106E-2},null,{"$f":"SUBTOTAL(9,J15:J500)","v":7584},{"$f":"SUBTOTAL(9,K15:K500)","v":3627},714,285,289,475]
[null,"Q44","RTV","5 BOROUGHS PARTNERSHIP NHS FOUNDATION TRUST","Acute Services",109,0.91743119266055051,9.1743119266055051E-3,null,67,33,4,0,1,4]
[null,"Q44","RTV","5 BOROUGHS PARTNERSHIP NHS FOUNDATION TRUST","Child & Adolescent Mental Health Services",45,0.6,0.2,null,18,9,3,1,8,6]
[null,"Q44","RTV","5 BOROUGHS PARTNERSHIP NHS FOUNDATION TRUST","Secondary Care Community Services",250,0.95199999999999996,4.0000000000000001E-3,null,191,47,6,0,1,5]
[null,"Q44","RTV","5 BOROUGHS PARTNERSHIP NHS FOUNDATION TRUST","Secure & Forensic Services",17,0.82352941176470584,0.11764705882352941,null,"*","*","*","*","*","*"]
[null,"Q44","RTV","5 BOROUGHS PARTNERSHIP NHS FOUNDATION TRUST","Specialist Services",2,"*","*",null,"*","*","*","*","*","*"]
[null,"Q44","RXA","CHESHIRE AND WIRRAL PARTNERSHIP NHS FOUNDATION TRUST","Acute Services",7,0.7142857142857143,0.14285714285714285,null,3,2,1,1,0,0]
[null,"Q44","RXA","CHESHIRE AND WIRRAL PARTNERSHIP NHS FOUNDATION TRUST","Child & Adolescent Mental Health Services",5,0.4,0,null,2,0,0,0,0,3]
[null,"Q44","RXA","CHESHIRE AND WIRRAL PARTNERSHIP NHS FOUNDATION TRUST","Secondary Care Community Services",41,0.87804878048780488,2.4390243902439025E-2,null,19,17,2,1,0,2]
[null,"Q45","RX3","TEES, ESK AND WEAR VALLEYS NHS FOUNDATION TRUST","Acute Services",280,0.85357142857142854,6.7857142857142852E-2,null,155,84,13,9,10,9]
[null,"Q45","RX3","TEES, ESK AND WEAR VALLEYS NHS FOUNDATION TRUST","Child & Adolescent Mental Health Services",114,0.76315789473684215,8.771929824561403E-2,null,39,48,10,7,3,7]
[null,"Q45","RX3","TEES, ESK AND WEAR VALLEYS NHS FOUNDATION TRUST","Mental Health Other",21,0.90476190476190477,9.5238095238095233E-2,null,9,10,0,1,1,0]
[null,"Q45","RX3","TEES, ESK AND WEAR VALLEYS NHS FOUNDATION TRUST","Primary Care",24,0.91666666666666663,0,null,16,6,1,0,0,1]
[null,"Q45","RX3","TEES, ESK AND WEAR VALLEYS NHS FOUNDATION TRUST","Secondary Care Community Services",305,0.92131147540983604,3.2786885245901641E-2,null,142,139,9,6,4,5]
[null,"Q45","RX3","TEES, ESK AND WEAR VALLEYS NHS FOUNDATION TRUST","Secure & Forensic Services",16,0.8125,6.25E-2,null,7,6,1,1,0,1]
[null,"Q45","RX3","TEES, ESK AND WEAR VALLEYS NHS FOUNDATION TRUST","Specialist Services",23,0.78260869565217395,4.3478260869565216E-2,null,7,11,3,1,0,1]
[null,"Q46","RXV","GREATER MANCHESTER WEST MENTAL HEALTH NHS FOUNDATION TRUST","Acute Services",64,0.90625,3.125E-2,null,45,13,3,1,1,1]
[null,"Q46","RXV","GREATER MANCHESTER WEST MENTAL HEALTH NHS FOUNDATION TRUST","Child & Adolescent Mental Health Services",4,"*","*",null,"*","*","*","*","*","*"]
[null,"Q46","RXV","GREATER MANCHESTER WEST MENTAL HEALTH NHS FOUNDATION TRUST","Primary Care",50,0.96,0.02,null,35,13,1,1,0,0]
[null,"Q46","RXV","GREATER MANCHESTER WEST MENTAL HEALTH NHS FOUNDATION TRUST","Secondary Care Community Services",98,0.91836734693877553,1.020408163265306E-2,null,67,23,4,1,0,3]
[null,"Q46","RXV","GREATER MANCHESTER WEST MENTAL HEALTH NHS FOUNDATION TRUST","Secure & Forensic Services",8,0.5,0.25,null,"*","*","*","*","*","*"]
[null,"Q46","TAE","MANCHESTER MENTAL HEALTH AND SOCIAL CARE TRUST","Acute Services",85,0.76470588235294112,8.2352941176470587E-2,null,47,18,8,4,3,5]
[null,"Q46","TAE","MANCHESTER MENTAL HEALTH AND SOCIAL CARE TRUST","Mental Health Other",20,0.85,0.05,null,14,3,1,0,1,1]
[null,"Q46","TAE","MANCHESTER MENTAL HEALTH AND SOCIAL CARE TRUST","Primary Care",19,0.84210526315789469,0.15789473684210525,null,11,5,0,2,1,0]
[null,"Q46","TAE","MANCHESTER MENTAL HEALTH AND SOCIAL CARE TRUST","Secondary Care Community Services",79,0.94936708860759489,2.5316455696202531E-2,null,64,11,2,2,0,0]
[null,"Q46","TAE","MANCHESTER MENTAL HEALTH AND SOCIAL CARE TRUST","Specialist Services",58,0.96551724137931039,0,null,44,12,2,0,0,0]
[null,"Q46","RT2","PENNINE CARE NHS FOUNDATION TRUST","Acute Services",40,0.8,7.4999999999999997E-2,null,"*","*","*","*","*","*"]
[null,"Q46","RT2","PENNINE CARE NHS FOUNDATION TRUST","Child & Adolescent Mental Health Services",185,0.8540540540540541,1.6216216216216217E-2,null,89,69,8,0,3,16]
[null,"Q46","RT2","PENNINE CARE NHS FOUNDATION TRUST","Primary Care",2,"*","*",null,"*","*","*","*","*","*"]
[null,"Q46","RT2","PENNINE CARE NHS FOUNDATION TRUST","Secondary Care Community Services",115,0.90434782608695652,3.4782608695652174E-2,null,79,25,5,2,2,2]
[null,"Q46","RT2","PENNINE CARE NHS FOUNDATION TRUST","Specialist Services",185,0.91891891891891897,4.3243243243243246E-2,null,153,17,4,2,6,3]
[null,"Q47","RXL","BLACKPOOL TEACHING HOSPITALS NHS FOUNDATION TRUST","Mental Health Other",1,"*","*",null,"*","*","*","*","*","*"]
[null,"Q47","RJX","CALDERSTONES PARTNERSHIP NHS FOUNDATION TRUST","Mental Health Other",36,0.80555555555555558,5.5555555555555552E-2,null,"*","*","*","*","*","*"]
[null,"Q47","RJX","CALDERSTONES PARTNERSHIP NHS FOUNDATION TRUST","Secure & Forensic Services",109,0.7155963302752294,0.21100917431192662,null,"*","*","*","*","*","*"]
[null,"Q47","RW5","LANCASHIRE CARE NHS FOUNDATION TRUST","Acute Services",25,0.84,0.04,null,12,9,3,1,0,0]
[null,"Q47","RW5","LANCASHIRE CARE NHS FOUNDATION TRUST","Child & Adolescent Mental Health Services",31,0.80645161290322576,0.16129032258064516,null,10,15,0,0,5,1]
[null,"Q47","RW5","LANCASHIRE CARE NHS FOUNDATION TRUST","Mental Health Other",45,0.88888888888888884,0,null,26,14,5,0,0,0]
[null,"Q47","RW5","LANCASHIRE CARE NHS FOUNDATION TRUST","Primary Care",157,0.92993630573248409,0,null,106,40,8,0,0,3]
[null,"Q47","RW5","LANCASHIRE CARE NHS FOUNDATION TRUST","Secondary Care Community Services",145,0.95862068965517244,6.8965517241379309E-3,null,104,35,4,1,0,1]
[null,"Q47","RW5","LANCASHIRE CARE NHS FOUNDATION TRUST","Secure & Forensic Services",16,0.4375,0.1875,null,2,5,3,1,2,3]
[null,"Q47","RW5","LANCASHIRE CARE NHS FOUNDATION TRUST","Specialist Services",36,0.66666666666666663,0.22222222222222221,null,8,16,3,7,1,1]
[null,"Q48","RW4","MERSEY CARE NHS TRUST","Acute Services",108,0.85185185185185186,2.7777777777777776E-2,null,39,53,13,3,0,0]
[null,"Q48","RW4","MERSEY CARE NHS TRUST","Secondary Care Community Services",163,0.90184049079754602,3.6809815950920248E-2,null,98,49,10,2,4,0]
[null,"Q48","RW4","MERSEY CARE NHS TRUST","Secure & Forensic Services",5,1,0,null,4,1,0,0,0,0]
[null,"Q49","RNN","CUMBRIA PARTNERSHIP NHS FOUNDATION TRUST","Acute Services",33,1,0,null,22,11,0,0,0,0]
[null,"Q49","RNN","CUMBRIA PARTNERSHIP NHS FOUNDATION TRUST","Child & Adolescent Mental Health Services",9,0.77777777777777779,0,null,5,2,0,0,0,2]
[null,"Q49","RNN","CUMBRIA PARTNERSHIP NHS FOUNDATION TRUST","Mental Health Other",2,"*","*",null,"*","*","*","*","*","*"]
[null,"Q49","RNN","CUMBRIA PARTNERSHIP NHS FOUNDATION TRUST","Secondary Care Community Services",4,"*","*",null,"*","*","*","*","*","*"]
[null,"Q49","RR7","GATESHEAD HEALTH NHS FOUNDATION TRUST","Acute Services",1,"*","*",null,"*","*","*","*","*","*"]
[null,"Q49","RR7","GATESHEAD HEALTH NHS FOUNDATION TRUST","Secondary Care Community Services",38,1,0,null,36,2,0,0,0,0]
[null,"Q49","RR7","GATESHEAD HEALTH NHS FOUNDATION TRUST","Specialist Services",19,1,0,null,"*","*","*","*","*","*"]
[null,"Q49","RX4","NORTHUMBERLAND, TYNE AND WEAR NHS FOUNDATION TRUST","Acute Services",17,0.88235294117647056,0,null,11,4,0,0,0,2]
[null,"Q49","RX4","NORTHUMBERLAND, TYNE AND WEAR NHS FOUNDATION TRUST","Child & Adolescent Mental Health Services",1,"*","*",null,"*","*","*","*","*","*"]
[null,"Q49","RX4","NORTHUMBERLAND, TYNE AND WEAR NHS FOUNDATION TRUST","Mental Health Other",9,0.88888888888888884,0,null,3,5,1,0,0,0]
[null,"Q49","RX4","NORTHUMBERLAND, TYNE AND WEAR NHS FOUNDATION TRUST","Secondary Care Community Services",123,0.80487804878048785,2.4390243902439025E-2,null,49,50,6,1,2,15]
[null,"Q49","RX4","NORTHUMBERLAND, TYNE AND WEAR NHS FOUNDATION TRUST","Secure & Forensic Services",7,1,0,null,"*","*","*","*","*","*"]
[null,"Q49","RX4","NORTHUMBERLAND, TYNE AND WEAR NHS FOUNDATION TRUST","Specialist Services",17,0.94117647058823528,0,null,13,3,1,0,0,0]
[null,"Q49","RTF","NORTHUMBRIA HEALTHCARE NHS FOUNDATION TRUST","Primary Care",44,0.95454545454545459,2.2727272727272728E-2,null,32,10,1,0,1,0]
[null,"Q49","RE9","SOUTH TYNESIDE NHS FOUNDATION TRUST","Child & Adolescent Mental Health Services",29,1,0,null,25,4,0,0,0,0]
[null,"Q49","RE9","SOUTH TYNESIDE NHS FOUNDATION TRUST","Primary Care",99,0.9494949494949495,1.0101010101010102E-2,null,81,13,3,0,1,1]
[null,"Q50","RV9","HUMBER NHS FOUNDATION TRUST","Acute Services",11,0.45454545454545453,0.36363636363636365,null,2,3,1,1,3,1]
[null,"Q50","RV9","HUMBER NHS FOUNDATION TRUST","Mental Health Other",8,0.625,0.25,null,3,2,0,0,2,1]
[null,"Q50","RV9","HUMBER NHS FOUNDATION TRUST","Primary Care",32,1,0,null,28,4,0,0,0,0]
[null,"Q50","RV9","HUMBER NHS FOUNDATION TRUST","Secondary Care Community Services",67,0.95522388059701491,2.9850746268656716E-2,null,55,9,1,1,1,0]
[null,"Q50","RV9","HUMBER NHS FOUNDATION TRUST","Secure & Forensic Services",9,0.88888888888888884,0,null,4,4,1,0,0,0]
[null,"Q50","RV9","HUMBER NHS FOUNDATION TRUST","Specialist Services",15,1,0,null,10,5,0,0,0,0]
[null,"Q51","TAH","SHEFFIELD HEALTH & SOCIAL CARE NHS FOUNDATION TRUST","Acute Services",11,1,0,null,10,1,0,0,0,0]
[null,"Q51","TAH","SHEFFIELD HEALTH & SOCIAL CARE NHS FOUNDATION TRUST","Mental Health Other",5,0.8,0,null,4,0,1,0,0,0]
[null,"Q51","TAH","SHEFFIELD HEALTH & SOCIAL CARE NHS FOUNDATION TRUST","Primary Care",6,0.83333333333333337,0,null,5,0,1,0,0,0]
[null,"Q51","TAH","SHEFFIELD HEALTH & SOCIAL CARE NHS FOUNDATION TRUST","Secondary Care Community Services",17,0.94117647058823528,0,null,13,3,1,0,0,0]
[null,"Q51","TAH","SHEFFIELD HEALTH & SOCIAL CARE NHS FOUNDATION TRUST","Specialist Services",11,1,0,null,8,3,0,0,0,0]
[null,"Q52","TAD","BRADFORD DISTRICT CARE TRUST","Acute Services",21,0.66666666666666663,0.14285714285714285,null,6,8,3,2,1,1]
[null,"Q52","TAD","BRADFORD DISTRICT CARE TRUST","Mental Health Other",1,"*","*",null,"*","*","*","*","*","*"]
[null,"Q52","TAD","BRADFORD DISTRICT CARE TRUST","Primary Care",6,1,0,null,"*","*","*","*","*","*"]
[null,"Q52","TAD","BRADFORD DISTRICT CARE TRUST","Secondary Care Community Services",16,0.9375,0,null,10,5,0,0,0,1]
[null,"Q52","RGD","LEEDS AND YORK PARTNERSHIP NHS FOUNDATION TRUST","Acute Services",18,0.72222222222222221,0.27777777777777779,null,6,7,0,3,2,0]
[null,"Q52","RGD","LEEDS AND YORK PARTNERSHIP NHS FOUNDATION TRUST","Child & Adolescent Mental Health Services",4,"*","*",null,"*","*","*","*","*","*"]
[null,"Q52","RGD","LEEDS AND YORK PARTNERSHIP NHS FOUNDATION TRUST","Mental Health Other",6,0.83333333333333337,0.16666666666666666,null,"*","*","*","*","*","*"]
[null,"Q52","RGD","LEEDS AND YORK PARTNERSHIP NHS FOUNDATION TRUST","Secondary Care Community Services",13,0.92307692307692313,7.6923076923076927E-2,null,9,3,0,0,1,0]
[null,"Q52","RGD","LEEDS AND YORK PARTNERSHIP NHS FOUNDATION TRUST","Specialist Services",15,0.93333333333333335,6.6666666666666666E-2,null,11,3,0,0,1,0]
[null,"Q52","RY6","LEEDS COMMUNITY HEALTHCARE NHS TRUST","Primary Care",146,0.8904109589041096,6.1643835616438353E-2,null,99,31,5,4,5,2]
[null,"Q52","RXG","SOUTH WEST YORKSHIRE PARTNERSHIP NHS FOUNDATION TRUST","Acute Services",49,0.93877551020408168,2.0408163265306121E-2,null,33,13,0,0,1,2]
[null,"Q52","RXG","SOUTH WEST YORKSHIRE PARTNERSHIP NHS FOUNDATION TRUST","Child & Adolescent Mental Health Services",10,0.9,0,null,7,2,0,0,0,1]
[null,"Q52","RXG","SOUTH WEST YORKSHIRE PARTNERSHIP NHS FOUNDATION TRUST","Secondary Care Community Services",87,0.91954022988505746,2.2988505747126436E-2,null,56,24,2,2,0,3]
[null,"Q52","RXG","SOUTH WEST YORKSHIRE PARTNERSHIP NHS FOUNDATION TRUST","Secure & Forensic Services",82,0.62195121951219512,0.21951219512195122,null,30,21,5,12,6,8]
[null,"Q52","RXG","SOUTH WEST YORKSHIRE PARTNERSHIP NHS FOUNDATION TRUST","Specialist Services",21,0.95238095238095233,0,null,19,1,1,0,0,0]
[null,"Q53","RYG","COVENTRY AND WARWICKSHIRE PARTNERSHIP NHS TRUST","Acute Services",23,0.82608695652173914,4.3478260869565216E-2,null,8,11,2,1,0,1]
[null,"Q53","RYG","COVENTRY AND WARWICKSHIRE PARTNERSHIP NHS TRUST","Mental Health Other",6,0.66666666666666663,0.16666666666666666,null,"*","*","*","*","*","*"]
[null,"Q53","RYG","COVENTRY AND WARWICKSHIRE PARTNERSHIP NHS TRUST","Secondary Care Community Services",23,0.82608695652173914,4.3478260869565216E-2,null,10,9,2,0,1,1]
[null,"Q53","RYG","COVENTRY AND WARWICKSHIRE PARTNERSHIP NHS TRUST","Specialist Services",1,"*","*",null,"*","*","*","*","*","*"]
[null,"Q53","R1A","WORCESTERSHIRE HEALTH AND CARE NHS TRUST","Secondary Care Community Services",4,"*","*",null,"*","*","*","*","*","*"]
[null,"Q54","RXT","BIRMINGHAM AND SOLIHULL MENTAL HEALTH NHS FOUNDATION TRUST","Acute Services",104,0.68269230769230771,0.125,null,40,31,11,4,9,9]
[null,"Q54","RXT","BIRMINGHAM AND SOLIHULL MENTAL HEALTH NHS FOUNDATION TRUST","Child & Adolescent Mental Health Services",4,"*","*",null,"*","*","*","*","*","*"]
[null,"Q54","RXT","BIRMINGHAM AND SOLIHULL MENTAL HEALTH NHS FOUNDATION TRUST","Mental Health Other",21,0.90476190476190477,0,null,11,8,1,0,0,1]
[null,"Q54","RXT","BIRMINGHAM AND SOLIHULL MENTAL HEALTH NHS FOUNDATION TRUST","Primary Care",3,"*","*",null,"*","*","*","*","*","*"]
[null,"Q54","RXT","BIRMINGHAM AND SOLIHULL MENTAL HEALTH NHS FOUNDATION TRUST","Secondary Care Community Services",399,0.90726817042606511,2.0050125313283207E-2,null,227,135,13,3,5,16]
[null,"Q54","RXT","BIRMINGHAM AND SOLIHULL MENTAL HEALTH NHS FOUNDATION TRUST","Secure & Forensic Services",14,0.5714285714285714,0.14285714285714285,null,1,7,1,2,0,3]
[null,"Q54","RXT","BIRMINGHAM AND SOLIHULL MENTAL HEALTH NHS FOUNDATION TRUST","Specialist Services",39,0.94871794871794868,2.564102564102564E-2,null,32,5,1,0,1,0]
[null,"Q54","TAJ","BLACK COUNTRY PARTNERSHIP NHS FOUNDATION TRUST","Mental Health Other",67,0.91044776119402981,2.9850746268656716E-2,null,39,22,3,1,1,1]
[null,"Q54","RYK","DUDLEY AND WALSALL MENTAL HEALTH PARTNERSHIP NHS TRUST","Secondary Care Community Services",141,0.85815602836879434,0,null,56,65,4,0,0,16]
[null,"Q55","RXM","DERBYSHIRE HEALTHCARE NHS FOUNDATION TRUST","Acute Services",10,0.5,0.2,null,3,2,0,1,1,3]
[null,"Q55","RXM","DERBYSHIRE HEALTHCARE NHS FOUNDATION TRUST","Child & Adolescent Mental Health Services",1,"*","*",null,"*","*","*","*","*","*"]
[null,"Q55","RXM","DERBYSHIRE HEALTHCARE NHS FOUNDATION TRUST","Mental Health Other",4,"*","*",null,"*","*","*","*","*","*"]
[null,"Q55","RXM","DERBYSHIRE HEALTHCARE NHS FOUNDATION TRUST","Specialist Services",3,"*","*",null,"*","*","*","*","*","*"]
[null,"Q55","RHA","NOTTINGHAMSHIRE HEALTHCARE NHS FOUNDATION TRUST","Acute Services",40,0.82499999999999996,0.15,null,25,8,0,4,2,1]
[null,"Q55","RHA","NOTTINGHAMSHIRE HEALTHCARE NHS FOUNDATION TRUST","Child & Adolescent Mental Health Services",9,1,0,null,3,6,0,0,0,0]
[null,"Q55","RHA","NOTTINGHAMSHIRE HEALTHCARE NHS FOUNDATION TRUST","Primary Care",106,0.99056603773584906,0,null,90,15,1,0,0,0]
[null,"Q55","RHA","NOTTINGHAMSHIRE HEALTHCARE NHS FOUNDATION TRUST","Secondary Care Community Services",89,0.9550561797752809,1.1235955056179775E-2,null,64,21,3,0,1,0]
[null,"Q55","RHA","NOTTINGHAMSHIRE HEALTHCARE NHS FOUNDATION TRUST","Secure & Forensic Services",12,0.25,0.41666666666666669,null,0,3,2,2,3,2]
[null,"Q55","RHA","NOTTINGHAMSHIRE HEALTHCARE NHS FOUNDATION TRUST","Specialist Services",14,0.9285714285714286,0,null,12,1,1,0,0,0]
[null,"Q56","RT1","CAMBRIDGESHIRE AND PETERBOROUGH NHS FOUNDATION TRUST","Acute Services",118,0.70338983050847459,7.6271186440677971E-2,null,42,41,11,6,3,15]
[null,"Q56","RT1","CAMBRIDGESHIRE AND PETERBOROUGH NHS FOUNDATION TRUST","Child & Adolescent Mental Health Services",21,0.8571428571428571,4.7619047619047616E-2,null,8,10,2,1,0,0]
[null,"Q56","RT1","CAMBRIDGESHIRE AND PETERBOROUGH NHS FOUNDATION TRUST","Mental Health Other",2,"*","*",null,"*","*","*","*","*","*"]
[null,"Q56","RT1","CAMBRIDGESHIRE AND PETERBOROUGH NHS FOUNDATION TRUST","Primary Care",64,0.96875,3.125E-2,null,42,20,0,1,1,0]
[null,"Q56","RT1","CAMBRIDGESHIRE AND PETERBOROUGH NHS FOUNDATION TRUST","Secondary Care Community Services",182,0.90109890109890112,5.4945054945054949E-3,null,113,51,14,1,0,3]
[null,"Q56","RT1","CAMBRIDGESHIRE AND PETERBOROUGH NHS FOUNDATION TRUST","Secure & Forensic Services",6,0.83333333333333337,0,null,"*","*","*","*","*","*"]
[null,"Q56","RT1","CAMBRIDGESHIRE AND PETERBOROUGH NHS FOUNDATION TRUST","Specialist Services",24,0.79166666666666663,0,null,6,13,1,0,0,4]
[null,"Q57","RWN","SOUTH ESSEX PARTNERSHIP UNIVERSITY NHS FOUNDATION TRUST","Acute Services",18,1,0,null,11,7,0,0,0,0]
[null,"Q57","RWN","SOUTH ESSEX PARTNERSHIP UNIVERSITY NHS FOUNDATION TRUST","Child & Adolescent Mental Health Services",13,0.92307692307692313,0,null,8,4,1,0,0,0]
[null,"Q57","RWN","SOUTH ESSEX PARTNERSHIP UNIVERSITY NHS FOUNDATION TRUST","Mental Health Other",1,"*","*",null,"*","*","*","*","*","*"]
[null,"Q57","RWN","SOUTH ESSEX PARTNERSHIP UNIVERSITY NHS FOUNDATION TRUST","Secondary Care Community Services",36,0.97222222222222221,2.7777777777777776E-2,null,28,7,0,0,1,0]
[null,"Q57","RWN","SOUTH ESSEX PARTNERSHIP UNIVERSITY NHS FOUNDATION TRUST","Specialist Services",9,0.77777777777777779,0.1111111111111111,null,"*","*","*","*","*","*"]
[null,"Q58","RY4","HERTFORDSHIRE COMMUNITY NHS TRUST","Child & Adolescent Mental Health Services",57,0.98245614035087714,0,null,37,19,1,0,0,0]
[null,"Q58","RWR","HERTFORDSHIRE PARTNERSHIP UNIVERSITY NHS FOUNDATION TRUST","Acute Services",54,0.90740740740740744,1.8518518518518517E-2,null,25,24,2,0,1,2]
[null,"Q58","RWR","HERTFORDSHIRE PARTNERSHIP UNIVERSITY NHS FOUNDATION TRUST","Child & Adolescent Mental Health Services",30,0.73333333333333328,0.13333333333333333,null,7,15,4,2,2,0]
[null,"Q58","RWR","HERTFORDSHIRE PARTNERSHIP UNIVERSITY NHS FOUNDATION TRUST","Mental Health Other",28,0.5,7.1428571428571425E-2,null,8,6,0,2,0,12]
[null,"Q58","RWR","HERTFORDSHIRE PARTNERSHIP UNIVERSITY NHS FOUNDATION TRUST","Secondary Care Community Services",98,0.69387755102040816,7.1428571428571425E-2,null,40,28,7,4,3,16]
[null,"Q58","RWR","HERTFORDSHIRE PARTNERSHIP UNIVERSITY NHS FOUNDATION TRUST","Secure & Forensic Services",7,0.7142857142857143,0.2857142857142857,null,2,3,0,1,1,0]
[null,"Q58","RWR","HERTFORDSHIRE PARTNERSHIP UNIVERSITY NHS FOUNDATION TRUST","Specialist Services",5,0.6,0,null,3,0,0,0,0,2]
[null,"Q58","RP1","NORTHAMPTONSHIRE HEALTHCARE NHS FOUNDATION TRUST","Acute Services",123,0.62601626016260159,9.7560975609756101E-2,null,41,36,18,10,2,16]
[null,"Q58","RP1","NORTHAMPTONSHIRE HEALTHCARE NHS FOUNDATION TRUST","Child & Adolescent Mental Health Services",89,0.8651685393258427,1.1235955056179775E-2,null,43,34,8,0,1,3]
[null,"Q58","RP1","NORTHAMPTONSHIRE HEALTHCARE NHS FOUNDATION TRUST","Mental Health Other",3,"*","*",null,"*","*","*","*","*","*"]
[null,"Q58","RP1","NORTHAMPTONSHIRE HEALTHCARE NHS FOUNDATION TRUST","Secondary Care Community Services",122,0.93442622950819676,1.6393442622950821E-2,null,90,24,4,0,2,2]
[null,"Q58","RP1","NORTHAMPTONSHIRE HEALTHCARE NHS FOUNDATION TRUST","Secure & Forensic Services",10,0.6,0.3,null,3,3,0,0,3,1]
[null,"Q58","RP1","NORTHAMPTONSHIRE HEALTHCARE NHS FOUNDATION TRUST","Specialist Services",7,1,0,null,"*","*","*","*","*","*"]
[null,"Q59","RT5","LEICESTERSHIRE PARTNERSHIP NHS TRUST","Acute Services",22,1,0,null,12,10,0,0,0,0]
[null,"Q59","RT5","LEICESTERSHIRE PARTNERSHIP NHS TRUST","Child & Adolescent Mental Health Services",52,0.84615384615384615,1.9230769230769232E-2,null,29,15,2,1,0,5]
[null,"Q59","RT5","LEICESTERSHIRE PARTNERSHIP NHS TRUST","Mental Health Other",20,1,0,null,9,11,0,0,0,0]
[null,"Q59","RT5","LEICESTERSHIRE PARTNERSHIP NHS TRUST","Primary Care",2,"*","*",null,"*","*","*","*","*","*"]
[null,"Q59","RT5","LEICESTERSHIRE PARTNERSHIP NHS TRUST","Secondary Care Community Services",212,0.95754716981132071,1.4150943396226415E-2,null,150,53,2,0,3,4]
[null,"Q59","RT5","LEICESTERSHIRE PARTNERSHIP NHS TRUST","Secure & Forensic Services",6,0.16666666666666666,0,null,"*","*","*","*","*","*"]
[null,"Q59","RT5","LEICESTERSHIRE PARTNERSHIP NHS TRUST","Specialist Services",17,0.94117647058823528,0,null,13,3,1,0,0,0]
[null,"Q59","RP7","LINCOLNSHIRE PARTNERSHIP NHS FOUNDATION TRUST","Acute Services",31,0.93548387096774188,6.4516129032258063E-2,null,21,8,0,0,2,0]
[null,"Q59","RP7","LINCOLNSHIRE PARTNERSHIP NHS FOUNDATION TRUST","Child & Adolescent Mental Health Services",30,0.8,0,null,24,0,6,0,0,0]
[null,"Q59","RP7","LINCOLNSHIRE PARTNERSHIP NHS FOUNDATION TRUST","Mental Health Other",14,1,0,null,"*","*","*","*","*","*"]
[null,"Q59","RP7","LINCOLNSHIRE PARTNERSHIP NHS FOUNDATION TRUST","Primary Care",190,0.98947368421052628,0,null,155,33,2,0,0,0]
[null,"Q59","RP7","LINCOLNSHIRE PARTNERSHIP NHS FOUNDATION TRUST","Secondary Care Community Services",45,0.9555555555555556,2.2222222222222223E-2,null,33,10,0,1,0,1]
[null,"Q59","RP7","LINCOLNSHIRE PARTNERSHIP NHS FOUNDATION TRUST","Secure & Forensic Services",1,"*","*",null,"*","*","*","*","*","*"]
[null,"Q59","RP7","LINCOLNSHIRE PARTNERSHIP NHS FOUNDATION TRUST","Specialist Services",84,0.98809523809523814,0,null,71,12,1,0,0,0]
[null,"Q60","RLY","NORTH STAFFORDSHIRE COMBINED HEALTHCARE NHS TRUST","Acute Services",27,0.85185185185185186,0,null,13,10,1,0,0,3]
[null,"Q60","RLY","NORTH STAFFORDSHIRE COMBINED HEALTHCARE NHS TRUST","Secondary Care Community Services",12,0.75,0,null,6,3,2,0,0,1]
[null,"Q60","R1D","SHROPSHIRE COMMUNITY HEALTH NHS TRUST","Child & Adolescent Mental Health Services",36,0.80555555555555558,0.1111111111111111,null,25,4,1,1,3,2]
[null,"Q60","RRE","SOUTH STAFFORDSHIRE AND SHROPSHIRE HEALTHCARE NHS FOUNDATION TRUST","Acute Services",40,0.82499999999999996,7.4999999999999997E-2,null,15,18,3,1,2,1]
[null,"Q60","RRE","SOUTH STAFFORDSHIRE AND SHROPSHIRE HEALTHCARE NHS FOUNDATION TRUST","Child & Adolescent Mental Health Services",10,1,0,null,8,2,0,0,0,0]
[null,"Q60","RRE","SOUTH STAFFORDSHIRE AND SHROPSHIRE HEALTHCARE NHS FOUNDATION TRUST","Mental Health Other",11,0.90909090909090906,0,null,7,3,1,0,0,0]
[null,"Q60","RRE","SOUTH STAFFORDSHIRE AND SHROPSHIRE HEALTHCARE NHS FOUNDATION TRUST","Primary Care",18,1,0,null,0,18,0,0,0,0]
[null,"Q60","RRE","SOUTH STAFFORDSHIRE AND SHROPSHIRE HEALTHCARE NHS FOUNDATION TRUST","Secondary Care Community Services",49,0.87755102040816324,6.1224489795918366E-2,null,32,11,1,2,1,2]
[null,"Q60","RRE","SOUTH STAFFORDSHIRE AND SHROPSHIRE HEALTHCARE NHS FOUNDATION TRUST","Secure & Forensic Services",6,1,0,null,"*","*","*","*","*","*"]
[null,"Q60","RRE","SOUTH STAFFORDSHIRE AND SHROPSHIRE HEALTHCARE NHS FOUNDATION TRUST","Specialist Services",1,"*","*",null,"*","*","*","*","*","*"]
[null,"Q64","RTQ","2GETHER NHS FOUNDATION TRUST","Acute Services",19,0.89473684210526316,0,null,"*","*","*","*","*","*"]
[null,"Q64","RTQ","2GETHER NHS FOUNDATION TRUST","Primary Care",3,"*","*",null,"*","*","*","*","*","*"]
[null,"Q64","RTQ","2GETHER NHS FOUNDATION TRUST","Secondary Care Community Services",247,0.87854251012145745,2.8340080971659919E-2,null,142,75,15,3,4,8]
[null,"Q64","RVN","AVON AND WILTSHIRE MENTAL HEALTH PARTNERSHIP NHS TRUST","Acute Services",76,0.82894736842105265,3.9473684210526314E-2,null,44,19,5,3,0,5]
[null,"Q64","RVN","AVON AND WILTSHIRE MENTAL HEALTH PARTNERSHIP NHS TRUST","Mental Health Other",48,0.875,4.1666666666666664E-2,null,"*","*","*","*","*","*"]
[null,"Q64","RVN","AVON AND WILTSHIRE MENTAL HEALTH PARTNERSHIP NHS TRUST","Primary Care",1,"*","*",null,"*","*","*","*","*","*"]
[null,"Q64","RVN","AVON AND WILTSHIRE MENTAL HEALTH PARTNERSHIP NHS TRUST","Secondary Care Community Services",391,0.87979539641943738,3.3248081841432228E-2,null,251,93,24,9,4,10]
[null,"Q64","RVN","AVON AND WILTSHIRE MENTAL HEALTH PARTNERSHIP NHS TRUST","Specialist Services",95,0.96842105263157896,0,null,72,20,2,0,0,1]
[null,"Q65","RH5","SOMERSET PARTNERSHIP NHS FOUNDATION TRUST","Acute Services",40,0.75,7.4999999999999997E-2,null,20,10,5,1,2,2]
[null,"Q65","RH5","SOMERSET PARTNERSHIP NHS FOUNDATION TRUST","Mental Health Other",8,0.875,0,null,6,1,1,0,0,0]
[null,"Q65","RH5","SOMERSET PARTNERSHIP NHS FOUNDATION TRUST","Secure & Forensic Services",10,0.4,0.5,null,4,0,0,4,1,1]
[null,"Q66","RJ8","CORNWALL PARTNERSHIP NHS FOUNDATION TRUST","Acute Services",8,1,0,null,"*","*","*","*","*","*"]
[null,"Q66","RJ8","CORNWALL PARTNERSHIP NHS FOUNDATION TRUST","Secondary Care Community Services",114,0.83333333333333337,6.1403508771929821E-2,null,59,36,7,2,5,5]
[null,"Q66","RJ8","CORNWALL PARTNERSHIP NHS FOUNDATION TRUST","Specialist Services",4,"*","*",null,"*","*","*","*","*","*"]
[null,"Q66","RWV","DEVON PARTNERSHIP NHS TRUST","Acute Services",11,1,0,null,7,4,0,0,0,0]
[null,"Q66","RWV","DEVON PARTNERSHIP NHS TRUST","Primary Care",4,"*","*",null,"*","*","*","*","*","*"]
[null,"Q66","RWV","DEVON PARTNERSHIP NHS TRUST","Secondary Care Community Services",7,0.7142857142857143,0.2857142857142857,null,5,0,0,0,2,0]
[null,"Q66","RWV","DEVON PARTNERSHIP NHS TRUST","Secure & Forensic Services",13,0.23076923076923078,0.23076923076923078,null,1,2,3,1,2,4]
[null,"Q66","RWV","DEVON PARTNERSHIP NHS TRUST","Specialist Services",3,"*","*",null,"*","*","*","*","*","*"]
[null,"Q67","RXY","KENT AND MEDWAY NHS AND SOCIAL CARE PARTNERSHIP TRUST","Acute Services",59,0.84745762711864403,1.6949152542372881E-2,null,35,15,7,0,1,1]
[null,"Q67","RXY","KENT AND MEDWAY NHS AND SOCIAL CARE PARTNERSHIP TRUST","Mental Health Other",2,"*","*",null,"*","*","*","*","*","*"]
[null,"Q67","RXY","KENT AND MEDWAY NHS AND SOCIAL CARE PARTNERSHIP TRUST","Secondary Care Community Services",40,0.97499999999999998,0,null,33,6,1,0,0,0]
[null,"Q67","RXY","KENT AND MEDWAY NHS AND SOCIAL CARE PARTNERSHIP TRUST","Specialist Services",16,0.9375,6.25E-2,null,"*","*","*","*","*","*"]
[null,"Q68","RXX","SURREY AND BORDERS PARTNERSHIP NHS FOUNDATION TRUST","Acute Services",54,0.68518518518518523,0.18518518518518517,null,23,14,5,8,2,2]
[null,"Q68","RXX","SURREY AND BORDERS PARTNERSHIP NHS FOUNDATION TRUST","Child & Adolescent Mental Health Services",18,0.88888888888888884,0,null,12,4,2,0,0,0]
[null,"Q68","RXX","SURREY AND BORDERS PARTNERSHIP NHS FOUNDATION TRUST","Mental Health Other",14,1,0,null,13,1,0,0,0,0]
[null,"Q68","RXX","SURREY AND BORDERS PARTNERSHIP NHS FOUNDATION TRUST","Secondary Care Community Services",139,0.84172661870503596,8.6330935251798566E-2,null,64,53,6,5,7,4]
[null,"Q68","RXX","SURREY AND BORDERS PARTNERSHIP NHS FOUNDATION TRUST","Specialist Services",30,0.8666666666666667,6.6666666666666666E-2,null,16,10,1,1,1,1]
[null,"Q68","RX2","SUSSEX PARTNERSHIP NHS FOUNDATION TRUST","Acute Services",95,0.93684210526315792,3.1578947368421054E-2,null,43,46,3,1,2,0]
[null,"Q68","RX2","SUSSEX PARTNERSHIP NHS FOUNDATION TRUST","Child & Adolescent Mental Health Services",161,0.91304347826086951,1.8633540372670808E-2,null,90,57,8,1,2,3]
[null,"Q68","RX2","SUSSEX PARTNERSHIP NHS FOUNDATION TRUST","Primary Care",16,0.9375,0,null,10,5,1,0,0,0]
[null,"Q68","RX2","SUSSEX PARTNERSHIP NHS FOUNDATION TRUST","Secondary Care Community Services",78,0.9358974358974359,3.8461538461538464E-2,null,57,16,2,1,2,0]
[null,"Q68","RX2","SUSSEX PARTNERSHIP NHS FOUNDATION TRUST","Secure & Forensic Services",20,0.6,0.3,null,5,7,1,1,5,1]
[null,"Q68","RX2","SUSSEX PARTNERSHIP NHS FOUNDATION TRUST","Specialist Services",31,0.967741935483871,0,null,20,10,1,0,0,0]
[null,"Q69","RWX","BERKSHIRE HEALTHCARE NHS FOUNDATION TRUST","Acute Services",2,"*","*",null,"*","*","*","*","*","*"]
[null,"Q69","RWX","BERKSHIRE HEALTHCARE NHS FOUNDATION TRUST","Primary Care",67,0.91044776119402981,4.4776119402985072E-2,null,48,13,3,0,3,0]
[null,"Q69","RWX","BERKSHIRE HEALTHCARE NHS FOUNDATION TRUST","Specialist Services",1,"*","*",null,"*","*","*","*","*","*"]
[null,"Q69","RNU","OXFORD HEALTH NHS FOUNDATION TRUST","Acute Services",24,0.58333333333333337,0.16666666666666666,null,9,5,4,1,3,2]
[null,"Q69","RNU","OXFORD HEALTH NHS FOUNDATION TRUST","Child & Adolescent Mental Health Services",197,0.82741116751269039,7.6142131979695438E-2,null,81,82,10,9,6,9]
[null,"Q69","RNU","OXFORD HEALTH NHS FOUNDATION TRUST","Primary Care",1,"*","*",null,"*","*","*","*","*","*"]
[null,"Q69","RNU","OXFORD HEALTH NHS FOUNDATION TRUST","Secondary Care Community Services",9,0.88888888888888884,0.1111111111111111,null,"*","*","*","*","*","*"]
[null,"Q70","RDY","DORSET HEALTHCARE UNIVERSITY NHS FOUNDATION TRUST","Acute Services",6,0.66666666666666663,0.16666666666666666,null,2,2,1,1,0,0]
[null,"Q70","RDY","DORSET HEALTHCARE UNIVERSITY NHS FOUNDATION TRUST","Mental Health Other",1,"*","*",null,"*","*","*","*","*","*"]
[null,"Q70","RDY","DORSET HEALTHCARE UNIVERSITY NHS FOUNDATION TRUST","Primary Care",335,0.9880597014925373,0,null,289,42,2,0,0,2]
[null,"Q70","RDY","DORSET HEALTHCARE UNIVERSITY NHS FOUNDATION TRUST","Secondary Care Community Services",30,0.8,0.1,null,13,11,2,0,3,1]
[null,"Q70","RDY","DORSET HEALTHCARE UNIVERSITY NHS FOUNDATION TRUST","Specialist Services",5,1,0,null,"*","*","*","*","*","*"]
[null,"Q70","R1F","ISLE OF WIGHT NHS TRUST","Acute Services",12,1,0,null,9,3,0,0,0,0]
[null,"Q70","R1F","ISLE OF WIGHT NHS TRUST","Secondary Care Community Services",15,0.8666666666666667,0,null,7,6,2,0,0,0]
[null,"Q70","R1C","SOLENT NHS TRUST","Acute Services",17,0.82352941176470584,5.8823529411764705E-2,null,8,6,2,0,1,0]
[null,"Q70","R1C","SOLENT NHS TRUST","Child & Adolescent Mental Health Services",5,1,0,null,5,0,0,0,0,0]
[null,"Q70","R1C","SOLENT NHS TRUST","Mental Health Other",34,0.94117647058823528,0,null,26,6,2,0,0,0]
[null,"Q70","R1C","SOLENT NHS TRUST","Secondary Care Community Services",42,0.97619047619047616,0,null,37,4,0,0,0,1]
[null,"Q70","RW1","SOUTHERN HEALTH NHS FOUNDATION TRUST","Acute Services",50,0.52,0.04,null,26,0,22,2,0,0]
[null,"Q70","RW1","SOUTHERN HEALTH NHS FOUNDATION TRUST","Mental Health Other",31,0.74193548387096775,0,null,"*","*","*","*","*","*"]
[null,"Q70","RW1","SOUTHERN HEALTH NHS FOUNDATION TRUST","Primary Care",152,0.83552631578947367,1.9736842105263157E-2,null,127,0,20,0,3,2]
[null,"Q70","RW1","SOUTHERN HEALTH NHS FOUNDATION TRUST","Secondary Care Community Services",131,0.61832061068702293,3.8167938931297711E-2,null,80,1,45,5,0,0]
[null,"Q70","RW1","SOUTHERN HEALTH NHS FOUNDATION TRUST","Secure & Forensic Services",3,"*","*",null,"*","*","*","*","*","*"]
[null,"Q71","RRP","BARNET, ENFIELD AND HARINGEY MENTAL HEALTH NHS TRUST","Acute Services",220,0.77727272727272723,7.2727272727272724E-2,null,94,77,23,9,7,10]
[null,"Q71","RRP","BARNET, ENFIELD AND HARINGEY MENTAL HEALTH NHS TRUST","Child & Adolescent Mental Health Services",10,0.1,0.8,null,1,0,1,4,4,0]
[null,"Q71","RRP","BARNET, ENFIELD AND HARINGEY MENTAL HEALTH NHS TRUST","Mental Health Other",5,0.6,0.2,null,1,2,0,0,1,1]
[null,"Q71","RRP","BARNET, ENFIELD AND HARINGEY MENTAL HEALTH NHS TRUST","Secondary Care Community Services",456,0.83333333333333337,3.5087719298245612E-2,null,204,176,36,10,6,24]
[null,"Q71","RRP","BARNET, ENFIELD AND HARINGEY MENTAL HEALTH NHS TRUST","Secure & Forensic Services",40,0.875,0.05,null,19,16,3,1,1,0]
[null,"Q71","RRP","BARNET, ENFIELD AND HARINGEY MENTAL HEALTH NHS TRUST","Specialist Services",6,0.66666666666666663,0.16666666666666666,null,2,2,1,0,1,0]
[null,"Q71","TAF","CAMDEN AND ISLINGTON NHS FOUNDATION TRUST","Secondary Care Community Services",7,0.7142857142857143,0.14285714285714285,null,2,3,0,0,1,1]
[null,"Q71","TAF","CAMDEN AND ISLINGTON NHS FOUNDATION TRUST","Specialist Services",11,0.90909090909090906,9.0909090909090912E-2,null,8,2,0,0,1,0]
[null,"Q71","RV3","CENTRAL AND NORTH WEST LONDON NHS FOUNDATION TRUST","Acute Services",21,0.7142857142857143,0.14285714285714285,null,6,9,0,2,1,3]
[null,"Q71","RV3","CENTRAL AND NORTH WEST LONDON NHS FOUNDATION TRUST","Child & Adolescent Mental Health Services",22,0.81818181818181823,0,null,9,9,4,0,0,0]
[null,"Q71","RV3","CENTRAL AND NORTH WEST LONDON NHS FOUNDATION TRUST","Mental Health Other",1,"*","*",null,"*","*","*","*","*","*"]
[null,"Q71","RV3","CENTRAL AND NORTH WEST LONDON NHS FOUNDATION TRUST","Primary Care",19,1,0,null,14,5,0,0,0,0]
[null,"Q71","RV3","CENTRAL AND NORTH WEST LONDON NHS FOUNDATION TRUST","Secondary Care Community Services",82,0.82926829268292679,9.7560975609756101E-2,null,42,26,1,0,8,5]
[null,"Q71","RV3","CENTRAL AND NORTH WEST LONDON NHS FOUNDATION TRUST","Specialist Services",6,1,0,null,"*","*","*","*","*","*"]
[null,"Q71","RWK","EAST LONDON NHS FOUNDATION TRUST","Acute Services",105,0.78095238095238095,2.8571428571428571E-2,null,"*","*","*","*","*","*"]
[null,"Q71","RWK","EAST LONDON NHS FOUNDATION TRUST","Specialist Services",4,"*","*",null,"*","*","*","*","*","*"]
[null,"Q71","RAT","NORTH EAST LONDON NHS FOUNDATION TRUST","Acute Services",68,0.83823529411764708,5.8823529411764705E-2,null,36,21,7,2,2,0]
[null,"Q71","RAT","NORTH EAST LONDON NHS FOUNDATION TRUST","Child & Adolescent Mental Health Services",21,0.76190476190476186,0.14285714285714285,null,6,10,1,2,1,1]
[null,"Q71","RAT","NORTH EAST LONDON NHS FOUNDATION TRUST","Primary Care",18,0.77777777777777779,0,null,9,5,4,0,0,0]
[null,"Q71","RAT","NORTH EAST LONDON NHS FOUNDATION TRUST","Secondary Care Community Services",99,0.89898989898989901,2.0202020202020204E-2,null,52,37,3,1,1,5]
[null,"Q71","RAT","NORTH EAST LONDON NHS FOUNDATION TRUST","Specialist Services",23,0.82608695652173914,0,null,11,8,4,0,0,0]
[null,"Q71","RPG","OXLEAS NHS FOUNDATION TRUST","Acute Services",87,0.83908045977011492,4.5977011494252873E-2,null,46,27,8,3,1,2]
[null,"Q71","RPG","OXLEAS NHS FOUNDATION TRUST","Mental Health Other",51,0.76470588235294112,3.9215686274509803E-2,null,21,18,2,2,0,8]
[null,"Q71","RPG","OXLEAS NHS FOUNDATION TRUST","Secondary Care Community Services",162,0.83950617283950613,5.5555555555555552E-2,null,96,40,8,4,5,9]
[null,"Q71","RPG","OXLEAS NHS FOUNDATION TRUST","Secure & Forensic Services",7,0.5714285714285714,0.14285714285714285,null,3,1,1,0,1,1]
[null,"Q71","RV5","SOUTH LONDON AND MAUDSLEY NHS FOUNDATION TRUST","Acute Services",175,0.69714285714285718,0.14857142857142858,null,58,64,17,14,12,10]
[null,"Q71","RV5","SOUTH LONDON AND MAUDSLEY NHS FOUNDATION TRUST","Child & Adolescent Mental Health Services",40,0.8,2.5000000000000001E-2,null,20,12,5,1,0,2]
[null,"Q71","RV5","SOUTH LONDON AND MAUDSLEY NHS FOUNDATION TRUST","Mental Health Other",16,0.75,0.1875,null,11,1,0,3,0,1]
[null,"Q71","RV5","SOUTH LONDON AND MAUDSLEY NHS FOUNDATION TRUST","Primary Care",46,0.89130434782608692,2.1739130434782608E-2,null,29,12,3,1,0,1]
[null,"Q71","RV5","SOUTH LONDON AND MAUDSLEY NHS FOUNDATION TRUST","Secondary Care Community Services",117,0.84615384615384615,1.7094017094017096E-2,null,54,45,9,2,0,7]
[null,"Q71","RV5","SOUTH LONDON AND MAUDSLEY NHS FOUNDATION TRUST","Secure & Forensic Services",18,0.94444444444444442,5.5555555555555552E-2,null,8,9,0,1,0,0]
[null,"Q71","RV5","SOUTH LONDON AND MAUDSLEY NHS FOUNDATION TRUST","Specialist Services",11,1,0,null,7,4,0,0,0,0]
[null,"Q71","RQY","SOUTH WEST LONDON AND ST GEORGE'S MENTAL HEALTH NHS TRUST","Acute Services",11,0.54545454545454541,0.18181818181818182,null,4,2,2,0,2,1]
[null,"Q71","RQY","SOUTH WEST LONDON AND ST GEORGE'S MENTAL HEALTH NHS TRUST","Secondary Care Community Services",1,"*","*",null,"*","*","*","*","*","*"]
[null,"Q71","RQY","SOUTH WEST LONDON AND ST GEORGE'S MENTAL HEALTH NHS TRUST","Secure & Forensic Services",3,"*","*",null,"*","*","*","*","*","*"]
[null,"Q71","RQY","SOUTH WEST LONDON AND ST GEORGE'S MENTAL HEALTH NHS TRUST","Specialist Services",1,"*","*",null,"*","*","*","*","*","*"]
[null,"Q71","RNK","TAVISTOCK AND PORTMAN NHS FOUNDATION TRUST","Mental Health Other",80,0.91249999999999998,1.2500000000000001E-2,null,68,5,0,1,0,6]
[null,"Q71","RRV","UNIVERSITY COLLEGE LONDON HOSPITALS NHS FOUNDATION TRUST","Specialist Services",4,"*","*",null,"*","*","*","*","*","*"]
[null,"Q71","RKL","WEST LONDON MENTAL HEALTH NHS TRUST","Acute Services",67,0.71641791044776115,0.13432835820895522,null,25,23,6,3,6,4]
[null,"Q71","RKL","WEST LONDON MENTAL HEALTH NHS TRUST","Child & Adolescent Mental Health Services",121,0.80991735537190079,1.6528925619834711E-2,null,59,39,10,2,0,11]
[null,"Q71","RKL","WEST LONDON MENTAL HEALTH NHS TRUST","Primary Care",29,1,0,null,17,12,0,0,0,0]
[null,"Q71","RKL","WEST LONDON MENTAL HEALTH NHS TRUST","Secondary Care Community Services",72,0.93055555555555558,1.3888888888888888E-2,null,53,14,2,1,0,2]
[null,"Q71","RKL","WEST LONDON MENTAL HEALTH NHS TRUST","Secure & Forensic Services",62,0.45161290322580644,0.35483870967741937,null,14,14,5,2,20,7]
[null,"IS1","NVR","ALPHA HOSPITALS","Acute Services",4,"*","*",null,"*","*","*","*","*","*"]
[null,"IS1","NVR","ALPHA HOSPITALS","Child & Adolescent Mental Health Services",8,0.375,0.25,null,2,1,2,1,1,1]
[null,"IS1","NVR","ALPHA HOSPITALS","Secure & Forensic Services",6,0.33333333333333331,0.33333333333333331,null,"*","*","*","*","*","*"]
[null,"IS1","NWX","BRIGHTON & HOVE INTEGRATED CARE SERVICE","Primary Care",23,1,0,null,20,3,0,0,0,0]
[null,"IS1","NNF","CITY HEALTH CARE PARTNERSHIP CIC","Primary Care",189,0.97883597883597884,5.2910052910052907E-3,null,149,36,0,1,0,3]
[null,"IS1","NNF","CITY HEALTH CARE PARTNERSHIP CIC","Specialist Services",9,1,0,null,7,2,0,0,0,0]
[null,"IS1","NMJ","CYGNET HEALTH CARE LIMITED","Child & Adolescent Mental Health Services",2,"*","*",null,"*","*","*","*","*","*"]
[null,"IS1","NMJ","CYGNET HEALTH CARE LIMITED","Secure & Forensic Services",1,"*","*",null,"*","*","*","*","*","*"]
[null,"IS1","NMJ","CYGNET HEALTH CARE LIMITED","Specialist Services",35,0.48571428571428571,0.25714285714285712,null,5,12,4,5,4,5]
[null,"IS1","NQL","NAVIGO","Mental Health Other",355,0.92676056338028168,3.6619718309859155E-2,null,234,95,8,11,2,5]
[null,"IS1","NR5","PLYMOUTH COMMUNITY HEALTHCARE (CIC)","Acute Services",33,0.81818181818181823,3.0303030303030304E-2,null,17,10,4,1,0,1]
[null,"IS1","NDK","YARBOROUGH CLEE CARE LIMITED","Secondary Care Community Services",5,1,0,null,4,1,0,0,0,0]

{"sheet":"BS","index":4,"n_rows":271,"n_cols":38,"rows_kept":271,"cut":false,"hidden":true,"merged":[]}
["Please select criteria…",1,"All areas",1,"N/A","N/A",null,"All areas",null,"Please select criteria…",1,"All trusts",1,1,"N/A",null,null,null,"Please select criteria…",1,"All categories",1,1,1,null,null,null,"All trusts","All categories",null,null,null,"<---fixed lists",null,"All trusts",null,"All trusts","All categories"]
["Area Team Code",null,"IS1 Independent Sector Provider",null,null,null,null,"IS1",null,"Area Team Code",null,"2GETHER NHS FOUNDATION TRUST",null,null,null,null,null,null,"Area Team Code",null,"Secondary Care Community Services",null,null,null,null,null,"IS1 Independent Sector Provider","ALPHA HOSPITALS","Acute Services",null,null,null,"linked lists--->",null,"2GETHER NHS FOUNDATION TRUST",null,"2GETHER NHS FOUNDATION TRUST","Secondary Care Community Services"]
["Area Team Name",null,"Q44 Cheshire, Warrington And Wirral Area Team",null,null,null,null,"Q44",null,"Trust Code",null,"5 BOROUGHS PARTNERSHIP NHS FOUNDATION TRUST",null,null,null,null,null,null,"Trust Code",null,"Acute Services",null,null,null,null,null,"IS1 Independent Sector Provider","ALPHA HOSPITALS","Child & Adolescent Mental Health Services",null,null,null,null,null,"5 BOROUGHS PARTNERSHIP NHS FOUNDATION TRUST",null,"5 BOROUGHS PARTNERSHIP NHS FOUNDATION TRUST","Acute Services"]
["Total Responses",null,"Q45 Durham, Darlington And Tees Area Team",null,null,null,null,"Q45",null,"Trust Name",null,"ALPHA HOSPITALS",null,null,null,null,null,null,"Trust Name",null,"Mental Health Other",null,null,null,null,null,"IS1 Independent Sector Provider","ALPHA HOSPITALS","Secure & Forensic Services",null,null,null,null,null,"ALPHA HOSPITALS",null,"ALPHA HOSPITALS","Mental Health Other"]
["Total Eligible",null,"Q46 Greater Manchester Area Team",null,null,null,null,"Q46",null,"Total Responses",null,"AVON AND WILTSHIRE MENTAL HEALTH PARTNERSHIP NHS TRUST",null,null,null,null,null,null,"Category",null,"Primary Care",null,null,null,null,null,"IS1 Independent Sector Provider","BRIGHTON & HOVE INTEGRATED CARE SERVICE","Primary Care",null,null,null,null,null,"AVON AND WILTSHIRE MENTAL HEALTH PARTNERSHIP NHS TRUST",null,"AVON AND WILTSHIRE MENTAL HEALTH PARTNERSHIP NHS TRUST","Primary Care"]
["Percentage Recommended",null,"Q47 Lancashire Area Team",null,null,null,null,"Q47",null,"Total Eligible",null,"BARNET, ENFIELD AND HARINGEY MENTAL HEALTH NHS TRUST",null,null,null,null,null,null,"Total Responses",null,"Secure & Forensic Services",null,null,null,null,null,"IS1 Independent Sector Provider","CITY HEALTH CARE PARTNERSHIP CIC","Primary Care",null,null,null,null,null,"BARNET, ENFIELD AND HARINGEY MENTAL HEALTH NHS TRUST",null,"BARNET, ENFIELD AND HARINGEY MENTAL HEALTH NHS TRUST","Secure & Forensic Services"]
["Percentage Not  Recommended",null,"Q48 Merseyside Area Team",null,null,null,null,"Q48",null,"Percentage Recommended",null,"BERKSHIRE HEALTHCARE NHS FOUNDATION TRUST",null,null,null,null,null,null,"Percentage Recommended",null,"Child & Adolescent Mental Health Services",null,null,null,null,null,"IS1 Independent Sector Provider","CITY HEALTH CARE PARTNERSHIP CIC","Specialist Services",null,null,null,null,null,"BERKSHIRE HEALTHCARE NHS FOUNDATION TRUST",null,"BERKSHIRE HEALTHCARE NHS FOUNDATION TRUST","Child & Adolescent Mental Health Services"]
["Extremely Likely",null,"Q49 Cumbria, Northumberland, Tyne And Wear Area Team",null,null,null,null,"Q49",null,"Percentage Not  Recommended",null,"BIRMINGHAM AND SOLIHULL MENTAL HEALTH NHS FOUNDATION TRUST",null,null,null,null,null,null,"Percentage Not  Recommended",null,"Specialist Services",null,null,null,null,null,"IS1 Independent Sector Provider","CYGNET HEALTH CARE LIMITED","Child & Adolescent Mental Health Services",null,null,null,null,null,"BIRMINGHAM AND SOLIHULL MENTAL HEALTH NHS FOUNDATION TRUST",null,"BIRMINGHAM AND SOLIHULL MENTAL HEALTH NHS FOUNDATION TRUST","Specialist Services"]
["Likely",null,"Q50 North Yorkshire And Humber Area Team",null,null,null,null,"Q50",null,"Extremely Likely",null,"BLACK COUNTRY PARTNERSHIP NHS FOUNDATION TRUST",null,null,null,null,null,null,"Extremely Likely",null,null,null,null,null,null,null,"IS1 Independent Sector Provider","CYGNET HEALTH CARE LIMITED","Secure & Forensic Services",null,null,null,null,null,"BLACK COUNTRY PARTNERSHIP NHS FOUNDATION TRUST",null,"BLACK COUNTRY PARTNERSHIP NHS FOUNDATION TRUST"]
["Neither",null,"Q51 South Yorkshire And Bassetlaw Area Team",null,null,null,null,"Q51",null,"Likely",null,"BLACKPOOL TEACHING HOSPITALS NHS FOUNDATION TRUST",null,null,null,null,null,null,"Likely",null,null,null,null,null,null,null,"IS1 Independent Sector Provider","CYGNET HEALTH CARE LIMITED","Specialist Services",null,null,null,null,null,"BLACKPOOL TEACHING HOSPITALS NHS FOUNDATION TRUST",null,"BLACKPOOL TEACHING HOSPITALS NHS FOUNDATION TRUST"]
["Unlikely",null,"Q52 West Yorkshire Area Team",null,null,null,null,"Q52",null,"Neither",null,"BRADFORD DISTRICT CARE TRUST",null,null,null,null,null,null,"Neither",null,null,null,null,null,null,null,"IS1 Independent Sector Provider","NAVIGO","Mental Health Other",null,null,null,null,null,"BRADFORD DISTRICT CARE TRUST",null,"BRADFORD DISTRICT CARE TRUST"]
["Extremely Unlikely",null,"Q53 Arden, Herefordshire And Worcestershire Area Team",null,null,null,null,"Q53",null,"Unlikely",null,"BRIGHTON & HOVE INTEGRATED CARE SERVICE",null,null,null,null,null,null,"Unlikely",null,null,null,null,null,null,null,"IS1 Independent Sector Provider","PLYMOUTH COMMUNITY HEALTHCARE (CIC)","Acute Services",null,null,null,null,null,"BRIGHTON & HOVE INTEGRATED CARE SERVICE",null,"BRIGHTON & HOVE INTEGRATED CARE SERVICE"]
["Don't Know",null,"Q54 Birmingham And The Black Country Area Team",null,null,null,null,"Q54",null,"Extremely Unlikely",null,"CALDERSTONES PARTNERSHIP NHS FOUNDATION TRUST",null,null,null,null,null,null,"Extremely Unlikely",null,null,null,null,null,null,null,"IS1 Independent Sector Provider","YARBOROUGH CLEE CARE LIMITED","Secondary Care Community Services",null,null,null,null,null,"CALDERSTONES PARTNERSHIP NHS FOUNDATION TRUST",null,"CALDERSTONES PARTNERSHIP NHS FOUNDATION TRUST"]
[null,null,"Q55 Derbyshire And Nottinghamshire Area Team",null,null,null,null,"Q55",null,"Don't Know",null,"CAMBRIDGESHIRE AND PETERBOROUGH NHS FOUNDATION TRUST",null,null,null,null,null,null,"Don't Know",null,null,null,null,null,null,null,"Q44 Cheshire, Warrington And Wirral Area Team","5 BOROUGHS PARTNERSHIP NHS FOUNDATION TRUST","Acute Services",null,null,null,null,null,"CAMBRIDGESHIRE AND PETERBOROUGH NHS FOUNDATION TRUST",null,"CAMBRIDGESHIRE AND PETERBOROUGH NHS FOUNDATION TRUST"]
[null,null,"Q56 East Anglia Area Team",null,null,null,null,"Q56",null,"SMS/Text / Smartphone App",null,"CAMDEN AND ISLINGTON NHS FOUNDATION TRUST",null,null,null,null,null,null,null,null,null,null,null,null,null,null,"Q44 Cheshire, Warrington And Wirral Area Team","5 BOROUGHS PARTNERSHIP NHS FOUNDATION TRUST","Child & Adolescent Mental Health Services",null,null,null,null,null,"CAMDEN AND ISLINGTON NHS FOUNDATION TRUST",null,"CAMDEN AND ISLINGTON NHS FOUNDATION TRUST"]
[null,null,"Q57 Essex Area Team",null,null,null,null,"Q57",null,"Electronic tablet/kiosk in care or at discharge",null,"CENTRAL AND NORTH WEST LONDON NHS FOUNDATION TRUST",null,null,null,null,null,null,null,null,null,null,null,null,null,null,"Q44 Cheshire, Warrington And Wirral Area Team","5 BOROUGHS PARTNERSHIP NHS FOUNDATION TRUST","Secondary Care Community Services",null,null,null,null,null,"CENTRAL AND NORTH WEST LONDON NHS FOUNDATION TRUST",null,"CENTRAL AND NORTH WEST LONDON NHS FOUNDATION TRUST"]
[null,null,"Q58 Hertfordshire And The South Midlands Area Team",null,null,null,null,"Q58",null,"Paper / postcard in care or at discharge",null,"CHESHIRE AND WIRRAL PARTNERSHIP NHS FOUNDATION TRUST",null,null,null,null,null,null,null,null,null,null,null,null,null,null,"Q44 Cheshire, Warrington And Wirral Area Team","5 BOROUGHS PARTNERSHIP NHS FOUNDATION TRUST","Secure & Forensic Services",null,null,null,null,null,"CHESHIRE AND WIRRAL PARTNERSHIP NHS FOUNDATION TRUST",null,"CHESHIRE AND WIRRAL PARTNERSHIP NHS FOUNDATION TRUST"]
[null,null,"Q59 Leicestershire And Lincolnshire Area Team",null,null,null,null,"Q59",null,"Paper survey sent to the patients home",null,"CITY HEALTH CARE PARTNERSHIP CIC",null,null,null,null,null,null,null,null,null,null,null,null,null,null,"Q44 Cheshire, Warrington And Wirral Area Team","5 BOROUGHS PARTNERSHIP NHS FOUNDATION TRUST","Specialist Services",null,null,null,null,null,"CITY HEALTH CARE PARTNERSHIP CIC",null,"CITY HEALTH CARE PARTNERSHIP CIC"]
[null,null,"Q60 Shropshire And Staffordshire Area Team",null,null,null,null,"Q60",null,"Telephone survey once patient is home",null,"CORNWALL PARTNERSHIP NHS FOUNDATION TRUST",null,null,null,null,null,null,null,null,null,null,null,null,null,null,"Q44 Cheshire, Warrington And Wirral Area Team","CHESHIRE AND WIRRAL PARTNERSHIP NHS FOUNDATION TRUST","Acute Services",null,null,null,null,null,"CORNWALL PARTNERSHIP NHS FOUNDATION TRUST",null,"CORNWALL PARTNERSHIP NHS FOUNDATION TRUST"]
[null,null,"Q64 Bath, Gloucestershire, Swindon And Wiltshire Area Team",null,null,null,null,"Q64",null,"Online survey once patient is home",null,"COVENTRY AND WARWICKSHIRE PARTNERSHIP NHS TRUST",null,null,null,null,null,null,null,null,null,null,null,null,null,null,"Q44 Cheshire, Warrington And Wirral Area Team","CHESHIRE AND WIRRAL PARTNERSHIP NHS FOUNDATION TRUST","Child & Adolescent Mental Health Services",null,null,null,null,null,"COVENTRY AND WARWICKSHIRE PARTNERSHIP NHS TRUST",null,"COVENTRY AND WARWICKSHIRE PARTNERSHIP NHS TRUST"]
[null,null,"Q65 Bristol, North Somerset, Somerset And South Gloucestershire Area Team",null,null,null,null,"Q65",null,"Other",null,"CUMBRIA PARTNERSHIP NHS FOUNDATION TRUST",null,null,null,null,null,null,null,null,null,null,null,null,null,null,"Q44 Cheshire, Warrington And Wirral Area Team","CHESHIRE AND WIRRAL PARTNERSHIP NHS FOUNDATION TRUST","Secondary Care Community Services",null,null,null,null,null,"CUMBRIA PARTNERSHIP NHS FOUNDATION TRUST",null,"CUMBRIA PARTNERSHIP NHS FOUNDATION TRUST"]
[null,null,"Q66 Devon, Cornwall And Isles Of Scilly Area Team",null,null,null,null,"Q66",null,null,null,"CYGNET HEALTH CARE LIMITED",null,null,null,null,null,null,null,null,null,null,null,null,null,null,"Q45 Durham, Darlington And Tees Area Team","TEES, ESK AND WEAR VALLEYS NHS FOUNDATION TRUST","Acute Services",null,null,null,null,null,"CYGNET HEALTH CARE LIMITED",null,"CYGNET HEALTH CARE LIMITED"]
[null,null,"Q67 Kent And Medway Area Team",null,null,null,null,"Q67",null,null,null,"DERBYSHIRE HEALTHCARE NHS FOUNDATION TRUST",null,null,null,null,null,null,null,null,null,null,null,null,null,null,"Q45 Durham, Darlington And Tees Area Team","TEES, ESK AND WEAR VALLEYS NHS FOUNDATION TRUST","Child & Adolescent Mental Health Services",null,null,null,null,null,"DERBYSHIRE HEALTHCARE NHS FOUNDATION TRUST",null,"DERBYSHIRE HEALTHCARE NHS FOUNDATION TRUST"]
[null,null,"Q68 Surrey And Sussex Area Team",null,null,null,null,"Q68",null,null,null,"DEVON PARTNERSHIP NHS TRUST",null,null,null,null,null,null,null,null,null,null,null,null,null,null,"Q45 Durham, Darlington And Tees Area Team","TEES, ESK AND WEAR VALLEYS NHS FOUNDATION TRUST","Mental Health Other",null,null,null,null,null,"DEVON PARTNERSHIP NHS TRUST",null,"DEVON PARTNERSHIP NHS TRUST"]
[null,null,"Q69 Thames Valley Area Team",null,null,null,null,"Q69",null,null,null,"DORSET HEALTHCARE UNIVERSITY NHS FOUNDATION TRUST",null,null,null,null,null,null,null,null,null,null,null,null,null,null,"Q45 Durham, Darlington And Tees Area Team","TEES, ESK AND WEAR VALLEYS NHS FOUNDATION TRUST","Primary Care",null,null,null,null,null,"DORSET HEALTHCARE UNIVERSITY NHS FOUNDATION TRUST",null,"DORSET HEALTHCARE UNIVERSITY NHS FOUNDATION TRUST"]
[null,null,"Q70 Wessex Area Team",null,null,null,null,"Q70",null,null,null,"DUDLEY AND WALSALL MENTAL HEALTH PARTNERSHIP NHS TRUST",null,null,null,null,null,null,null,null,null,null,null,null,null,null,"Q45 Durham, Darlington And Tees Area Team","TEES, ESK AND WEAR VALLEYS NHS FOUNDATION TRUST","Secondary Care Community Services",null,null,null,null,null,"DUDLEY AND WALSALL MENTAL HEALTH PARTNERSHIP NHS TRUST",null,"DUDLEY AND WALSALL MENTAL HEALTH PARTNERSHIP NHS TRUST"]
[null,null,"Q71 London Area Team",null,null,null,null,"Q71",null,null,null,"EAST LONDON NHS FOUNDATION TRUST",null,null,null,null,null,null,null,null,null,null,null,null,null,null,"Q45 Durham, Darlington And Tees Area Team","TEES, ESK AND WEAR VALLEYS NHS FOUNDATION TRUST","Secure & Forensic Services",null,null,null,null,null,"EAST LONDON NHS FOUNDATION TRUST",null,"EAST LONDON NHS FOUNDATION TRUST"]
[null,null,null,null,null,null,null,null,null,null,null,"GATESHEAD HEALTH NHS FOUNDATION TRUST",null,null,null,null,null,null,null,null,null,null,null,null,null,null,"Q45 Durham, Darlington And Tees Area Team","TEES, ESK AND WEAR VALLEYS NHS FOUNDATION TRUST","Specialist Services",null,null,null,null,null,"GATESHEAD HEALTH NHS FOUNDATION TRUST",null,"GATESHEAD HEALTH NHS FOUNDATION TRUST"]
[null,null,null,null,null,null,null,null,null,null,null,"GREATER MANCHESTER WEST MENTAL HEALTH NHS FOUNDATION TRUST",null,null,null,null,null,null,null,null,null,null,null,null,null,null,"Q46 Greater Manchester Area Team","GREATER MANCHESTER WEST MENTAL HEALTH NHS FOUNDATION TRUST","Acute Services",null,null,null,null,null,"GREATER MANCHESTER WEST MENTAL HEALTH NHS FOUNDATION TRUST",null,"GREATER MANCHESTER WEST MENTAL HEALTH NHS FOUNDATION TRUST"]
[null,null,null,null,null,null,null,null,null,null,null,"HERTFORDSHIRE COMMUNITY NHS TRUST",null,null,null,null,null,null,null,null,null,null,null,null,null,null,"Q46 Greater Manchester Area Team","GREATER MANCHESTER WEST MENTAL HEALTH NHS FOUNDATION TRUST","Child & Adolescent Mental Health Services",null,null,null,null,null,"HERTFORDSHIRE COMMUNITY NHS TRUST",null,"HERTFORDSHIRE COMMUNITY NHS TRUST"]
[null,null,null,null,null,null,null,null,null,null,null,"HERTFORDSHIRE PARTNERSHIP UNIVERSITY NHS FOUNDATION TRUST",null,null,null,null,null,null,null,null,null,null,null,null,null,null,"Q46 Greater Manchester Area Team","GREATER MANCHESTER WEST MENTAL HEALTH NHS FOUNDATION TRUST","Primary Care",null,null,null,null,null,"HERTFORDSHIRE PARTNERSHIP UNIVERSITY NHS FOUNDATION TRUST",null,"HERTFORDSHIRE PARTNERSHIP UNIVERSITY NHS FOUNDATION TRUST"]
[null,null,null,null,null,null,null,null,null,null,null,"HUMBER NHS FOUNDATION TRUST",null,null,null,null,null,null,null,null,null,null,null,null,null,null,"Q46 Greater Manchester Area Team","GREATER MANCHESTER WEST MENTAL HEALTH NHS FOUNDATION TRUST","Secondary Care Community Services",null,null,null,null,null,"HUMBER NHS FOUNDATION TRUST",null,"HUMBER NHS FOUNDATION TRUST"]
[null,null,null,null,null,null,null,null,null,null,null,"ISLE OF WIGHT NHS TRUST",null,null,null,null,null,null,null,null,null,null,null,null,null,null,"Q46 Greater Manchester Area Team","GREATER MANCHESTER WEST MENTAL HEALTH NHS FOUNDATION TRUST","Secure & Forensic Services",null,null,null,null,null,"ISLE OF WIGHT NHS TRUST",null,"ISLE OF WIGHT NHS TRUST"]
[null,null,null,null,null,null,null,null,null,null,null,"KENT AND MEDWAY NHS AND SOCIAL CARE PARTNERSHIP TRUST",null,null,null,null,null,null,null,null,null,null,null,null,null,null,"Q46 Greater Manchester Area Team","MANCHESTER MENTAL HEALTH AND SOCIAL CARE TRUST","Acute Services",null,null,null,null,null,"KENT AND MEDWAY NHS AND SOCIAL CARE PARTNERSHIP TRUST",null,"KENT AND MEDWAY NHS AND SOCIAL CARE PARTNERSHIP TRUST"]
[null,null,null,null,null,null,null,null,null,null,null,"LANCASHIRE CARE NHS FOUNDATION TRUST",null,null,null,null,null,null,null,null,null,null,null,null,null,null,"Q46 Greater Manchester Area Team","MANCHESTER MENTAL HEALTH AND SOCIAL CARE TRUST","Mental Health Other",null,null,null,null,null,"LANCASHIRE CARE NHS FOUNDATION TRUST",null,"LANCASHIRE CARE NHS FOUNDATION TRUST"]
[null,null,null,null,null,null,null,null,null,null,null,"LEEDS AND YORK PARTNERSHIP NHS FOUNDATION TRUST",null,null,null,null,null,null,null,null,null,null,null,null,null,null,"Q46 Greater Manchester Area Team","MANCHESTER MENTAL HEALTH AND SOCIAL CARE TRUST","Primary Care",null,null,null,null,null,"LEEDS AND YORK PARTNERSHIP NHS FOUNDATION TRUST",null,"LEEDS AND YORK PARTNERSHIP NHS FOUNDATION TRUST"]
[null,null,null,null,null,null,null,null,null,null,null,"LEEDS COMMUNITY HEALTHCARE NHS TRUST",null,null,null,null,null,null,null,null,null,null,null,null,null,null,"Q46 Greater Manchester Area Team","MANCHESTER MENTAL HEALTH AND SOCIAL CARE TRUST","Secondary Care Community Services",null,null,null,null,null,"LEEDS COMMUNITY HEALTHCARE NHS TRUST",null,"LEEDS COMMUNITY HEALTHCARE NHS TRUST"]
[null,null,null,null,null,null,null,null,null,null,null,"LEICESTERSHIRE PARTNERSHIP NHS TRUST",null,null,null,null,null,null,null,null,null,null,null,null,null,null,"Q46 Greater Manchester Area Team","MANCHESTER MENTAL HEALTH AND SOCIAL CARE TRUST","Specialist Services",null,null,null,null,null,"LEICESTERSHIRE PARTNERSHIP NHS TRUST",null,"LEICESTERSHIRE PARTNERSHIP NHS TRUST"]
[null,null,null,null,null,null,null,null,null,null,null,"LINCOLNSHIRE PARTNERSHIP NHS FOUNDATION TRUST",null,null,null,null,null,null,null,null,null,null,null,null,null,null,"Q46 Greater Manchester Area Team","PENNINE CARE NHS FOUNDATION TRUST","Acute Services",null,null,null,null,null,"LINCOLNSHIRE PARTNERSHIP NHS FOUNDATION TRUST",null,"LINCOLNSHIRE PARTNERSHIP NHS FOUNDATION TRUST"]
[null,null,null,null,null,null,null,null,null,null,null,"MANCHESTER MENTAL HEALTH AND SOCIAL CARE TRUST",null,null,null,null,null,null,null,null,null,null,null,null,null,null,"Q46 Greater Manchester Area Team","PENNINE CARE NHS FOUNDATION TRUST","Child & Adolescent Mental Health Services",null,null,null,null,null,"MANCHESTER MENTAL HEALTH AND SOCIAL CARE TRUST",null,"MANCHESTER MENTAL HEALTH AND SOCIAL CARE TRUST"]
[null,null,null,null,null,null,null,null,null,null,null,"MERSEY CARE NHS TRUST",null,null,null,null,null,null,null,null,null,null,null,null,null,null,"Q46 Greater Manchester Area Team","PENNINE CARE NHS FOUNDATION TRUST","Primary Care",null,null,null,null,null,"MERSEY CARE NHS TRUST",null,"MERSEY CARE NHS TRUST"]
[null,null,null,null,null,null,null,null,null,null,null,"NAVIGO",null,null,null,null,null,null,null,null,null,null,null,null,null,null,"Q46 Greater Manchester Area Team","PENNINE CARE NHS FOUNDATION TRUST","Secondary Care Community Services",null,null,null,null,null,"NAVIGO",null,"NAVIGO"]
[null,null,null,null,null,null,null,null,null,null,null,"NORTH EAST LONDON NHS FOUNDATION TRUST",null,null,null,null,null,null,null,null,null,null,null,null,null,null,"Q46 Greater Manchester Area Team","PENNINE CARE NHS FOUNDATION TRUST","Specialist Services",null,null,null,null,null,"NORTH EAST LONDON NHS FOUNDATION TRUST",null,"NORTH EAST LONDON NHS FOUNDATION TRUST"]
[null,null,null,null,null,null,null,null,null,null,null,"NORTH STAFFORDSHIRE COMBINED HEALTHCARE NHS TRUST",null,null,null,null,null,null,null,null,null,null,null,null,null,null,"Q47 Lancashire Area Team","BLACKPOOL TEACHING HOSPITALS NHS FOUNDATION TRUST","Mental Health Other",null,null,null,null,null,"NORTH STAFFORDSHIRE COMBINED HEALTHCARE NHS TRUST",null,"NORTH STAFFORDSHIRE COMBINED HEALTHCARE NHS TRUST"]
[null,null,null,null,null,null,null,null,null,null,null,"NORTHAMPTONSHIRE HEALTHCARE NHS FOUNDATION TRUST",null,null,null,null,null,null,null,null,null,null,null,null,null,null,"Q47 Lancashire Area Team","CALDERSTONES PARTNERSHIP NHS FOUNDATION TRUST","Mental Health Other",null,null,null,null,null,"NORTHAMPTONSHIRE HEALTHCARE NHS FOUNDATION TRUST",null,"NORTHAMPTONSHIRE HEALTHCARE NHS FOUNDATION TRUST"]
[null,null,null,null,null,null,null,null,null,null,null,"NORTHUMBERLAND, TYNE AND WEAR NHS FOUNDATION TRUST",null,null,null,null,null,null,null,null,null,null,null,null,null,null,"Q47 Lancashire Area Team","CALDERSTONES PARTNERSHIP NHS FOUNDATION TRUST","Secure & Forensic Services",null,null,null,null,null,"NORTHUMBERLAND, TYNE AND WEAR NHS FOUNDATION TRUST",null,"NORTHUMBERLAND, TYNE AND WEAR NHS FOUNDATION TRUST"]
[null,null,null,null,null,null,null,null,null,null,null,"NORTHUMBRIA HEALTHCARE NHS FOUNDATION TRUST",null,null,null,null,null,null,null,null,null,null,null,null,null,null,"Q47 Lancashire Area Team","LANCASHIRE CARE NHS FOUNDATION TRUST","Acute Services",null,null,null,null,null,"NORTHUMBRIA HEALTHCARE NHS FOUNDATION TRUST",null,"NORTHUMBRIA HEALTHCARE NHS FOUNDATION TRUST"]
[null,null,null,null,null,null,null,null,null,null,null,"NOTTINGHAMSHIRE HEALTHCARE NHS FOUNDATION TRUST",null,null,null,null,null,null,null,null,null,null,null,null,null,null,"Q47 Lancashire Area Team","LANCASHIRE CARE NHS FOUNDATION TRUST","Child & Adolescent Mental Health Services",null,null,null,null,null,"NOTTINGHAMSHIRE HEALTHCARE NHS FOUNDATION TRUST",null,"NOTTINGHAMSHIRE HEALTHCARE NHS FOUNDATION TRUST"]
[null,null,null,null,null,null,null,null,null,null,null,"OXFORD HEALTH NHS FOUNDATION TRUST",null,null,null,null,null,null,null,null,null,null,null,null,null,null,"Q47 Lancashire Area Team","LANCASHIRE CARE NHS FOUNDATION TRUST","Mental Health Other",null,null,null,null,null,"OXFORD HEALTH NHS FOUNDATION TRUST",null,"OXFORD HEALTH NHS FOUNDATION TRUST"]
[null,null,null,null,null,null,null,null,null,null,null,"OXLEAS NHS FOUNDATION TRUST",null,null,null,null,null,null,null,null,null,null,null,null,null,null,"Q47 Lancashire Area Team","LANCASHIRE CARE NHS FOUNDATION TRUST","Primary Care",null,null,null,null,null,"OXLEAS NHS FOUNDATION TRUST",null,"OXLEAS NHS FOUNDATION TRUST"]
[null,null,null,null,null,null,null,null,null,null,null,"PENNINE CARE NHS FOUNDATION TRUST",null,null,null,null,null,null,null,null,null,null,null,null,null,null,"Q47 Lancashire Area Team","LANCASHIRE CARE NHS FOUNDATION TRUST","Secondary Care Community Services",null,null,null,null,null,"PENNINE CARE NHS FOUNDATION TRUST",null,"PENNINE CARE NHS FOUNDATION TRUST"]
[null,null,null,null,null,null,null,null,null,null,null,"PLYMOUTH COMMUNITY HEALTHCARE (CIC)",null,null,null,null,null,null,null,null,null,null,null,null,null,null,"Q47 Lancashire Area Team","LANCASHIRE CARE NHS FOUNDATION TRUST","Secure & Forensic Services",null,null,null,null,null,"PLYMOUTH COMMUNITY HEALTHCARE (CIC)",null,"PLYMOUTH COMMUNITY HEALTHCARE (CIC)"]
[null,null,null,null,null,null,null,null,null,null,null,"SHEFFIELD HEALTH & SOCIAL CARE NHS FOUNDATION TRUST",null,null,null,null,null,null,null,null,null,null,null,null,null,null,"Q47 Lancashire Area Team","LANCASHIRE CARE NHS FOUNDATION TRUST","Specialist Services",null,null,null,null,null,"SHEFFIELD HEALTH & SOCIAL CARE NHS FOUNDATION TRUST",null,"SHEFFIELD HEALTH & SOCIAL CARE NHS FOUNDATION TRUST"]
[null,null,null,null,null,null,null,null,null,null,null,"SHROPSHIRE COMMUNITY HEALTH NHS TRUST",null,null,null,null,null,null,null,null,null,null,null,null,null,null,"Q48 Merseyside Area Team","MERSEY CARE NHS TRUST","Acute Services",null,null,null,null,null,"SHROPSHIRE COMMUNITY HEALTH NHS TRUST",null,"SHROPSHIRE COMMUNITY HEALTH NHS TRUST"]
[null,null,null,null,null,null,null,null,null,null,null,"SOLENT NHS TRUST",null,null,null,null,null,null,null,null,null,null,null,null,null,null,"Q48 Merseyside Area Team","MERSEY CARE NHS TRUST","Secondary Care Community Services",null,null,null,null,null,"SOLENT NHS TRUST",null,"SOLENT NHS TRUST"]
[null,null,null,null,null,null,null,null,null,null,null,"SOMERSET PARTNERSHIP NHS FOUNDATION TRUST",null,null,null,null,null,null,null,null,null,null,null,null,null,null,"Q48 Merseyside Area Team","MERSEY CARE NHS TRUST","Secure & Forensic Services",null,null,null,null,null,"SOMERSET PARTNERSHIP NHS FOUNDATION TRUST",null,"SOMERSET PARTNERSHIP NHS FOUNDATION TRUST"]
[null,null,null,null,null,null,null,null,null,null,null,"SOUTH ESSEX PARTNERSHIP UNIVERSITY NHS FOUNDATION TRUST",null,null,null,null,null,null,null,null,null,null,null,null,null,null,"Q49 Cumbria, Northumberland, Tyne And Wear Area Team","CUMBRIA PARTNERSHIP NHS FOUNDATION TRUST","Acute Services",null,null,null,null,null,"SOUTH ESSEX PARTNERSHIP UNIVERSITY NHS FOUNDATION TRUST",null,"SOUTH ESSEX PARTNERSHIP UNIVERSITY NHS FOUNDATION TRUST"]
[null,null,null,null,null,null,null,null,null,null,null,"SOUTH LONDON AND MAUDSLEY NHS FOUNDATION TRUST",null,null,null,null,null,null,null,null,null,null,null,null,null,null,"Q49 Cumbria, Northumberland, Tyne And Wear Area Team","CUMBRIA PARTNERSHIP NHS FOUNDATION TRUST","Child & Adolescent Mental Health Services",null,null,null,null,null,"SOUTH LONDON AND MAUDSLEY NHS FOUNDATION TRUST",null,"SOUTH LONDON AND MAUDSLEY NHS FOUNDATION TRUST"]
[null,null,null,null,null,null,null,null,null,null,null,"SOUTH STAFFORDSHIRE AND SHROPSHIRE HEALTHCARE NHS FOUNDATION TRUST",null,null,null,null,null,null,null,null,null,null,null,null,null,null,"Q49 Cumbria, Northumberland, Tyne And Wear Area Team","CUMBRIA PARTNERSHIP NHS FOUNDATION TRUST","Mental Health Other",null,null,null,null,null,"SOUTH STAFFORDSHIRE AND SHROPSHIRE HEALTHCARE NHS FOUNDATION TRUST",null,"SOUTH STAFFORDSHIRE AND SHROPSHIRE HEALTHCARE NHS FOUNDATION TRUST"]
[null,null,null,null,null,null,null,null,null,null,null,"SOUTH TYNESIDE NHS FOUNDATION TRUST",null,null,null,null,null,null,null,null,null,null,null,null,null,null,"Q49 Cumbria, Northumberland, Tyne And Wear Area Team","CUMBRIA PARTNERSHIP NHS FOUNDATION TRUST","Secondary Care Community Services",null,null,null,null,null,"SOUTH TYNESIDE NHS FOUNDATION TRUST",null,"SOUTH TYNESIDE NHS FOUNDATION TRUST"]
[null,null,null,null,null,null,null,null,null,null,null,"SOUTH WEST LONDON AND ST GEORGE'S MENTAL HEALTH NHS TRUST",null,null,null,null,null,null,null,null,null,null,null,null,null,null,"Q49 Cumbria, Northumberland, Tyne And Wear Area Team","GATESHEAD HEALTH NHS FOUNDATION TRUST","Acute Services",null,null,null,null,null,"SOUTH WEST LONDON AND ST GEORGE'S MENTAL HEALTH NHS TRUST",null,"SOUTH WEST LONDON AND ST GEORGE'S MENTAL HEALTH NHS TRUST"]
[null,null,null,null,null,null,null,null,null,null,null,"SOUTH WEST YORKSHIRE PARTNERSHIP NHS FOUNDATION TRUST",null,null,null,null,null,null,null,null,null,null,null,null,null,null,"Q49 Cumbria, Northumberland, Tyne And Wear Area Team","GATESHEAD HEALTH NHS FOUNDATION TRUST","Secondary Care Community Services",null,null,null,null,null,"SOUTH WEST YORKSHIRE PARTNERSHIP NHS FOUNDATION TRUST",null,"SOUTH WEST YORKSHIRE PARTNERSHIP NHS FOUNDATION TRUST"]
[null,null,null,null,null,null,null,null,null,null,null,"SOUTHERN HEALTH NHS FOUNDATION TRUST",null,null,null,null,null,null,null,null,null,null,null,null,null,null,"Q49 Cumbria, Northumberland, Tyne And Wear Area Team","GATESHEAD HEALTH NHS FOUNDATION TRUST","Specialist Services",null,null,null,null,null,"SOUTHERN HEALTH NHS FOUNDATION TRUST",null,"SOUTHERN HEALTH NHS FOUNDATION TRUST"]
[null,null,null,null,null,null,null,null,null,null,null,"SURREY AND BORDERS PARTNERSHIP NHS FOUNDATION TRUST",null,null,null,null,null,null,null,null,null,null,null,null,null,null,"Q49 Cumbria, Northumberland, Tyne And Wear Area Team","NORTHUMBERLAND, TYNE AND WEAR NHS FOUNDATION TRUST","Acute Services",null,null,null,null,null,"SURREY AND BORDERS PARTNERSHIP NHS FOUNDATION TRUST",null,"SURREY AND BORDERS PARTNERSHIP NHS FOUNDATION TRUST"]
[null,null,null,null,null,null,null,null,null,null,null,"SUSSEX PARTNERSHIP NHS FOUNDATION TRUST",null,null,null,null,null,null,null,null,null,null,null,null,null,null,"Q49 Cumbria, Northumberland, Tyne And Wear Area Team","NORTHUMBERLAND, TYNE AND WEAR NHS FOUNDATION TRUST","Child & Adolescent Mental Health Services",null,null,null,null,null,"SUSSEX PARTNERSHIP NHS FOUNDATION TRUST",null,"SUSSEX PARTNERSHIP NHS FOUNDATION TRUST"]
[null,null,null,null,null,null,null,null,null,null,null,"TAVISTOCK AND PORTMAN NHS FOUNDATION TRUST",null,null,null,null,null,null,null,null,null,null,null,null,null,null,"Q49 Cumbria, Northumberland, Tyne And Wear Area Team","NORTHUMBERLAND, TYNE AND WEAR NHS FOUNDATION TRUST","Mental Health Other",null,null,null,null,null,"TAVISTOCK AND PORTMAN NHS FOUNDATION TRUST",null,"TAVISTOCK AND PORTMAN NHS FOUNDATION TRUST"]
[null,null,null,null,null,null,null,null,null,null,null,"TEES, ESK AND WEAR VALLEYS NHS FOUNDATION TRUST",null,null,null,null,null,null,null,null,null,null,null,null,null,null,"Q49 Cumbria, Northumberland, Tyne And Wear Area Team","NORTHUMBERLAND, TYNE AND WEAR NHS FOUNDATION TRUST","Secondary Care Community Services",null,null,null,null,null,"TEES, ESK AND WEAR VALLEYS NHS FOUNDATION TRUST",null,"TEES, ESK AND WEAR VALLEYS NHS FOUNDATION TRUST"]
[null,null,null,null,null,null,null,null,null,null,null,"UNIVERSITY COLLEGE LONDON HOSPITALS NHS FOUNDATION TRUST",null,null,null,null,null,null,null,null,null,null,null,null,null,null,"Q49 Cumbria, Northumberland, Tyne And Wear Area Team","NORTHUMBERLAND, TYNE AND WEAR NHS FOUNDATION TRUST","Secure & Forensic Services",null,null,null,null,null,"UNIVERSITY COLLEGE LONDON HOSPITALS NHS FOUNDATION TRUST",null,"UNIVERSITY COLLEGE LONDON HOSPITALS NHS FOUNDATION TRUST"]
[null,null,null,null,null,null,null,null,null,null,null,"WEST LONDON MENTAL HEALTH NHS TRUST",null,null,null,null,null,null,null,null,null,null,null,null,null,null,"Q49 Cumbria, Northumberland, Tyne And Wear Area Team","NORTHUMBERLAND, TYNE AND WEAR NHS FOUNDATION TRUST","Specialist Services",null,null,null,null,null,"WEST LONDON MENTAL HEALTH NHS TRUST",null,"WEST LONDON MENTAL HEALTH NHS TRUST"]
[null,null,null,null,null,null,null,null,null,null,null,"WORCESTERSHIRE HEALTH AND CARE NHS TRUST",null,null,null,null,null,null,null,null,null,null,null,null,null,null,"Q49 Cumbria, Northumberland, Tyne And Wear Area Team","NORTHUMBRIA HEALTHCARE NHS FOUNDATION TRUST","Primary Care",null,null,null,null,null,"WORCESTERSHIRE HEALTH AND CARE NHS TRUST",null,"WORCESTERSHIRE HEALTH AND CARE NHS TRUST"]
[null,null,null,null,null,null,null,null,null,null,null,"YARBOROUGH CLEE CARE LIMITED",null,null,null,null,null,null,null,null,null,null,null,null,null,null,"Q49 Cumbria, Northumberland, Tyne And Wear Area Team","SOUTH TYNESIDE NHS FOUNDATION TRUST","Child & Adolescent Mental Health Services",null,null,null,null,null,"YARBOROUGH CLEE CARE LIMITED",null,"YARBOROUGH CLEE CARE LIMITED"]
[null,null,null,null,null,null,null,null,null,null,null,null,null,null,null,null,null,null,null,null,null,null,null,null,null,null,"Q49 Cumbria, Northumberland, Tyne And Wear Area Team","SOUTH TYNESIDE NHS FOUNDATION TRUST","Primary Care"]
[null,null,null,null,null,null,null,null,null,null,null,null,null,null,null,null,null,null,null,null,null,null,null,null,null,null,"Q50 North Yorkshire And Humber Area Team","HUMBER NHS FOUNDATION TRUST","Acute Services"]
[null,null,null,null,null,null,null,null,null,null,null,null,null,null,null,null,null,null,null,null,null,null,null,null,null,null,"Q50 North Yorkshire And Humber Area Team","HUMBER NHS FOUNDATION TRUST","Mental Health Other"]
[null,null,null,null,null,null,null,null,null,null,null,null,null,null,null,null,null,null,null,null,null,null,null,null,null,null,"Q50 North Yorkshire And Humber Area Team","HUMBER NHS FOUNDATION TRUST","Primary Care"]
[null,null,null,null,null,null,null,null,null,null,null,null,null,null,null,null,null,null,null,null,null,null,null,null,null,null,"Q50 North Yorkshire And Humber Area Team","HUMBER NHS FOUNDATION TRUST","Secondary Care Community Services"]
[null,null,null,null,null,null,null,null,null,null,null,null,null,null,null,null,null,null,null,null,null,null,null,null,null,null,"Q50 North Yorkshire And Humber Area Team","HUMBER NHS FOUNDATION TRUST","Secure & Forensic Services"]
[null,null,null,null,null,null,null,null,null,null,null,null,null,null,null,null,null,null,null,null,null,null,null,null,null,null,"Q50 North Yorkshire And Humber Area Team","HUMBER NHS FOUNDATION TRUST","Specialist Services"]
[null,null,null,null,null,null,null,null,null,null,null,null,null,null,null,null,null,null,null,null,null,null,null,null,null,null,"Q51 South Yorkshire And Bassetlaw Area Team","SHEFFIELD HEALTH & SOCIAL CARE NHS FOUNDATION TRUST","Acute Services"]
[null,null,null,null,null,null,null,null,null,null,null,null,null,null,null,null,null,null,null,null,null,null,null,null,null,null,"Q51 South Yorkshire And Bassetlaw Area Team","SHEFFIELD HEALTH & SOCIAL CARE NHS FOUNDATION TRUST","Mental Health Other"]
[null,null,null,null,null,null,null,null,null,null,null,null,null,null,null,null,null,null,null,null,null,null,null,null,null,null,"Q51 South Yorkshire And Bassetlaw Area Team","SHEFFIELD HEALTH & SOCIAL CARE NHS FOUNDATION TRUST","Primary Care"]
[null,null,null,null,null,null,null,null,null,null,null,null,null,null,null,null,null,null,null,null,null,null,null,null,null,null,"Q51 South Yorkshire And Bassetlaw Area Team","SHEFFIELD HEALTH & SOCIAL CARE NHS FOUNDATION TRUST","Secondary Care Community Services"]
[null,null,null,null,null,null,null,null,null,null,null,null,null,null,null,null,null,null,null,null,null,null,null,null,null,null,"Q51 South Yorkshire And Bassetlaw Area Team","SHEFFIELD HEALTH & SOCIAL CARE NHS FOUNDATION TRUST","Specialist Services"]
[null,null,null,null,null,null,null,null,null,null,null,null,null,null,null,null,null,null,null,null,null,null,null,null,null,null,"Q52 West Yorkshire Area Team","BRADFORD DISTRICT CARE TRUST","Acute Services"]
[null,null,null,null,null,null,null,null,null,null,null,null,null,null,null,null,null,null,null,null,null,null,null,null,null,null,"Q52 West Yorkshire Area Team","BRADFORD DISTRICT CARE TRUST","Mental Health Other"]
[null,null,null,null,null,null,null,null,null,null,null,null,null,null,null,null,null,null,null,null,null,null,null,null,null,null,"Q52 West Yorkshire Area Team","BRADFORD DISTRICT CARE TRUST","Primary Care"]
[null,null,null,null,null,null,null,null,null,null,null,null,null,null,null,null,null,null,null,null,null,null,null,null,null,null,"Q52 West Yorkshire Area Team","BRADFORD DISTRICT CARE TRUST","Secondary Care Community Services"]
[null,null,null,null,null,null,null,null,null,null,null,null,null,null,null,null,null,null,null,null,null,null,null,null,null,null,"Q52 West Yorkshire Area Team","LEEDS AND YORK PARTNERSHIP NHS FOUNDATION TRUST","Acute Services"]
[null,null,null,null,null,null,null,null,null,null,null,null,null,null,null,null,null,null,null,null,null,null,null,null,null,null,"Q52 West Yorkshire Area Team","LEEDS AND YORK PARTNERSHIP NHS FOUNDATION TRUST","Child & Adolescent Mental Health Services"]
[null,null,null,null,null,null,null,null,null,null,null,null,null,null,null,null,null,null,null,null,null,null,null,null,null,null,"Q52 West Yorkshire Area Team","LEEDS AND YORK PARTNERSHIP NHS FOUNDATION TRUST","Mental Health Other"]
[null,null,null,null,null,null,null,null,null,null,null,null,null,null,null,null,null,null,null,null,null,null,null,null,null,null,"Q52 West Yorkshire Area Team","LEEDS AND YORK PARTNERSHIP NHS FOUNDATION TRUST","Secondary Care Community Services"]
[null,null,null,null,null,null,null,null,null,null,null,null,null,null,null,null,null,null,null,null,null,null,null,null,null,null,"Q52 West Yorkshire Area Team","LEEDS AND YORK PARTNERSHIP NHS FOUNDATION TRUST","Specialist Services"]
[null,null,null,null,null,null,null,null,null,null,null,null,null,null,null,null,null,null,null,null,null,null,null,null,null,null,"Q52 West Yorkshire Area Team","LEEDS COMMUNITY HEALTHCARE NHS TRUST","Primary Care"]
[null,null,null,null,null,null,null,null,null,null,null,null,null,null,null,null,null,null,null,null,null,null,null,null,null,null,"Q52 West Yorkshire Area Team","SOUTH WEST YORKSHIRE PARTNERSHIP NHS FOUNDATION TRUST","Acute Services"]
[null,null,null,null,null,null,null,null,null,null,null,null,null,null,null,null,null,null,null,null,null,null,null,null,null,null,"Q52 West Yorkshire Area Team","SOUTH WEST YORKSHIRE PARTNERSHIP NHS FOUNDATION TRUST","Child & Adolescent Mental Health Services"]
[null,null,null,null,null,null,null,null,null,null,null,null,null,null,null,null,null,null,null,null,null,null,null,null,null,null,"Q52 West Yorkshire Area Team","SOUTH WEST YORKSHIRE PARTNERSHIP NHS FOUNDATION TRUST","Secondary Care Community Services"]
[null,null,null,null,null,null,null,null,null,null,null,null,null,null,null,null,null,null,null,null,null,null,null,null,null,null,"Q52 West Yorkshire Area Team","SOUTH WEST YORKSHIRE PARTNERSHIP NHS FOUNDATION TRUST","Secure & Forensic Services"]
[null,null,null,null,null,null,null,null,null,null,null,null,null,null,null,null,null,null,null,null,null,null,null,null,null,null,"Q52 West Yorkshire Area Team","SOUTH WEST YORKSHIRE PARTNERSHIP NHS FOUNDATION TRUST","Specialist Services"]
[null,null,null,null,null,null,null,null,null,null,null,null,null,null,null,null,null,null,null,null,null,null,null,null,null,null,"Q53 Arden, Herefordshire And Worcestershire Area Team","COVENTRY AND WARWICKSHIRE PARTNERSHIP NHS TRUST","Acute Services"]
[null,null,null,null,null,null,null,null,null,null,null,null,null,null,null,null,null,null,null,null,null,null,null,null,null,null,"Q53 Arden, Herefordshire And Worcestershire Area Team","COVENTRY AND WARWICKSHIRE PARTNERSHIP NHS TRUST","Mental Health Other"]
[null,null,null,null,null,null,null,null,null,null,null,null,null,null,null,null,null,null,null,null,null,null,null,null,null,null,"Q53 Arden, Herefordshire And Worcestershire Area Team","COVENTRY AND WARWICKSHIRE PARTNERSHIP NHS TRUST","Secondary Care Community Services"]
[null,null,null,null,null,null,null,null,null,null,null,null,null,null,null,null,null,null,null,null,null,null,null,null,null,null,"Q53 Arden, Herefordshire And Worcestershire Area Team","COVENTRY AND WARWICKSHIRE PARTNERSHIP NHS TRUST","Specialist Services"]
[null,null,null,null,null,null,null,null,null,null,null,null,null,null,null,null,null,null,null,null,null,null,null,null,null,null,"Q53 Arden, Herefordshire And Worcestershire Area Team","WORCESTERSHIRE HEALTH AND CARE NHS TRUST","Secondary Care Community Services"]
[null,null,null,null,null,null,null,null,null,null,null,null,null,null,null,null,null,null,null,null,null,null,null,null,null,null,"Q54 Birmingham And The Black Country Area Team","BIRMINGHAM AND SOLIHULL MENTAL HEALTH NHS FOUNDATION TRUST","Acute Services"]
[null,null,null,null,null,null,null,null,null,null,null,null,null,null,null,null,null,null,null,null,null,null,null,null,null,null,"Q54 Birmingham And The Black Country Area Team","BIRMINGHAM AND SOLIHULL MENTAL HEALTH NHS FOUNDATION TRUST","Child & Adolescent Mental Health Services"]
[null,null,null,null,null,null,null,null,null,null,null,null,null,null,null,null,null,null,null,null,null,null,null,null,null,null,"Q54 Birmingham And The Black Country Area Team","BIRMINGHAM AND SOLIHULL MENTAL HEALTH NHS FOUNDATION TRUST","Mental Health Other"]
[null,null,null,null,null,null,null,null,null,null,null,null,null,null,null,null,null,null,null,null,null,null,null,null,null,null,"Q54 Birmingham And The Black Country Area Team","BIRMINGHAM AND SOLIHULL MENTAL HEALTH NHS FOUNDATION TRUST","Primary Care"]
[null,null,null,null,null,null,null,null,null,null,null,null,null,null,null,null,null,null,null,null,null,null,null,null,null,null,"Q54 Birmingham And The Black Country Area Team","BIRMINGHAM AND SOLIHULL MENTAL HEALTH NHS FOUNDATION TRUST","Secondary Care Community Services"]
[null,null,null,null,null,null,null,null,null,null,null,null,null,null,null,null,null,null,null,null,null,null,null,null,null,null,"Q54 Birmingham And The Black Country Area Team","BIRMINGHAM AND SOLIHULL MENTAL HEALTH NHS FOUNDATION TRUST","Secure & Forensic Services"]
[null,null,null,null,null,null,null,null,null,null,null,null,null,null,null,null,null,null,null,null,null,null,null,null,null,null,"Q54 Birmingham And The Black Country Area Team","BIRMINGHAM AND SOLIHULL MENTAL HEALTH NHS FOUNDATION TRUST","Specialist Services"]
[null,null,null,null,null,null,null,null,null,null,null,null,null,null,null,null,null,null,null,null,null,null,null,null,null,null,"Q54 Birmingham And The Black Country Area Team","BLACK COUNTRY PARTNERSHIP NHS FOUNDATION TRUST","Mental Health Other"]
[null,null,null,null,null,null,null,null,null,null,null,null,null,null,null,null,null,null,null,null,null,null,null,null,null,null,"Q54 Birmingham And The Black Country Area Team","DUDLEY AND WALSALL MENTAL HEALTH PARTNERSHIP NHS TRUST","Secondary Care Community Services"]
[null,null,null,null,null,null,null,null,null,null,null,null,null,null,null,null,null,null,null,null,null,null,null,null,null,null,"Q55 Derbyshire And Nottinghamshire Area Team","DERBYSHIRE HEALTHCARE NHS FOUNDATION TRUST","Acute Services"]
[null,null,null,null,null,null,null,null,null,null,null,null,null,null,null,null,null,null,null,null,null,null,null,null,null,null,"Q55 Derbyshire And Nottinghamshire Area Team","DERBYSHIRE HEALTHCARE NHS FOUNDATION TRUST","Child & Adolescent Mental Health Services"]
[null,null,null,null,null,null,null,null,null,null,null,null,null,null,null,null,null,null,null,null,null,null,null,null,null,null,"Q55 Derbyshire And Nottinghamshire Area Team","DERBYSHIRE HEALTHCARE NHS FOUNDATION TRUST","Mental Health Other"]
[null,null,null,null,null,null,null,null,null,null,null,null,null,null,null,null,null,null,null,null,null,null,null,null,null,null,"Q55 Derbyshire And Nottinghamshire Area Team","DERBYSHIRE HEALTHCARE NHS FOUNDATION TRUST","Specialist Services"]
[null,null,null,null,null,null,null,null,null,null,null,null,null,null,null,null,null,null,null,null,null,null,null,null,null,null,"Q55 Derbyshire And Nottinghamshire Area Team","NOTTINGHAMSHIRE HEALTHCARE NHS FOUNDATION TRUST","Acute Services"]
[null,null,null,null,null,null,null,null,null,null,null,null,null,null,null,null,null,null,null,null,null,null,null,null,null,null,"Q55 Derbyshire And Nottinghamshire Area Team","NOTTINGHAMSHIRE HEALTHCARE NHS FOUNDATION TRUST","Child & Adolescent Mental Health Services"]
[null,null,null,null,null,null,null,null,null,null,null,null,null,null,null,null,null,null,null,null,null,null,null,null,null,null,"Q55 Derbyshire And Nottinghamshire Area Team","NOTTINGHAMSHIRE HEALTHCARE NHS FOUNDATION TRUST","Primary Care"]
[null,null,null,null,null,null,null,null,null,null,null,null,null,null,null,null,null,null,null,null,null,null,null,null,null,null,"Q55 Derbyshire And Nottinghamshire Area Team","NOTTINGHAMSHIRE HEALTHCARE NHS FOUNDATION TRUST","Secondary Care Community Services"]
[null,null,null,null,null,null,null,null,null,null,null,null,null,null,null,null,null,null,null,null,null,null,null,null,null,null,"Q55 Derbyshire And Nottinghamshire Area Team","NOTTINGHAMSHIRE HEALTHCARE NHS FOUNDATION TRUST","Secure & Forensic Services"]
[null,null,null,null,null,null,null,null,null,null,null,null,null,null,null,null,null,null,null,null,null,null,null,null,null,null,"Q55 Derbyshire And Nottinghamshire Area Team","NOTTINGHAMSHIRE HEALTHCARE NHS FOUNDATION TRUST","Specialist Services"]
[null,null,null,null,null,null,null,null,null,null,null,null,null,null,null,null,null,null,null,null,null,null,null,null,null,null,"Q56 East Anglia Area Team","CAMBRIDGESHIRE AND PETERBOROUGH NHS FOUNDATION TRUST","Acute Services"]
[null,null,null,null,null,null,null,null,null,null,null,null,null,null,null,null,null,null,null,null,null,null,null,null,null,null,"Q56 East Anglia Area Team","CAMBRIDGESHIRE AND PETERBOROUGH NHS FOUNDATION TRUST","Child & Adolescent Mental Health Services"]
[null,null,null,null,null,null,null,null,null,null,null,null,null,null,null,null,null,null,null,null,null,null,null,null,null,null,"Q56 East Anglia Area Team","CAMBRIDGESHIRE AND PETERBOROUGH NHS FOUNDATION TRUST","Mental Health Other"]
[null,null,null,null,null,null,null,null,null,null,null,null,null,null,null,null,null,null,null,null,null,null,null,null,null,null,"Q56 East Anglia Area Team","CAMBRIDGESHIRE AND PETERBOROUGH NHS FOUNDATION TRUST","Primary Care"]
[null,null,null,null,null,null,null,null,null,null,null,null,null,null,null,null,null,null,null,null,null,null,null,null,null,null,"Q56 East Anglia Area Team","CAMBRIDGESHIRE AND PETERBOROUGH NHS FOUNDATION TRUST","Secondary Care Community Services"]
[null,null,null,null,null,null,null,null,null,null,null,null,null,null,null,null,null,null,null,null,null,null,null,null,null,null,"Q56 East Anglia Area Team","CAMBRIDGESHIRE AND PETERBOROUGH NHS FOUNDATION TRUST","Secure & Forensic Services"]
[null,null,null,null,null,null,null,null,null,null,null,null,null,null,null,null,null,null,null,null,null,null,null,null,null,null,"Q56 East Anglia Area Team","CAMBRIDGESHIRE AND PETERBOROUGH NHS FOUNDATION TRUST","Specialist Services"]
[null,null,null,null,null,null,null,null,null,null,null,null,null,null,null,null,null,null,null,null,null,null,null,null,null,null,"Q57 Essex Area Team","SOUTH ESSEX PARTNERSHIP UNIVERSITY NHS FOUNDATION TRUST","Acute Services"]
[null,null,null,null,null,null,null,null,null,null,null,null,null,null,null,null,null,null,null,null,null,null,null,null,null,null,"Q57 Essex Area Team","SOUTH ESSEX PARTNERSHIP UNIVERSITY NHS FOUNDATION TRUST","Child & Adolescent Mental Health Services"]
[null,null,null,null,null,null,null,null,null,null,null,null,null,null,null,null,null,null,null,null,null,null,null,null,null,null,"Q57 Essex Area Team","SOUTH ESSEX PARTNERSHIP UNIVERSITY NHS FOUNDATION TRUST","Mental Health Other"]
[null,null,null,null,null,null,null,null,null,null,null,null,null,null,null,null,null,null,null,null,null,null,null,null,null,null,"Q57 Essex Area Team","SOUTH ESSEX PARTNERSHIP UNIVERSITY NHS FOUNDATION TRUST","Secondary Care Community Services"]
[null,null,null,null,null,null,null,null,null,null,null,null,null,null,null,null,null,null,null,null,null,null,null,null,null,null,"Q57 Essex Area Team","SOUTH ESSEX PARTNERSHIP UNIVERSITY NHS FOUNDATION TRUST","Specialist Services"]
[null,null,null,null,null,null,null,null,null,null,null,null,null,null,null,null,null,null,null,null,null,null,null,null,null,null,"Q58 Hertfordshire And The South Midlands Area Team","HERTFORDSHIRE COMMUNITY NHS TRUST","Child & Adolescent Mental Health Services"]
[null,null,null,null,null,null,null,null,null,null,null,null,null,null,null,null,null,null,null,null,null,null,null,null,null,null,"Q58 Hertfordshire And The South Midlands Area Team","HERTFORDSHIRE PARTNERSHIP UNIVERSITY NHS FOUNDATION TRUST","Acute Services"]
[null,null,null,null,null,null,null,null,null,null,null,null,null,null,null,null,null,null,null,null,null,null,null,null,null,null,"Q58 Hertfordshire And The South Midlands Area Team","HERTFORDSHIRE PARTNERSHIP UNIVERSITY NHS FOUNDATION TRUST","Child & Adolescent Mental Health Services"]
[null,null,null,null,null,null,null,null,null,null,null,null,null,null,null,null,null,null,null,null,null,null,null,null,null,null,"Q58 Hertfordshire And The South Midlands Area Team","HERTFORDSHIRE PARTNERSHIP UNIVERSITY NHS FOUNDATION TRUST","Mental Health Other"]
[null,null,null,null,null,null,null,null,null,null,null,null,null,null,null,null,null,null,null,null,null,null,null,null,null,null,"Q58 Hertfordshire And The South Midlands Area Team","HERTFORDSHIRE PARTNERSHIP UNIVERSITY NHS FOUNDATION TRUST","Secondary Care Community Services"]
[null,null,null,null,null,null,null,null,null,null,null,null,null,null,null,null,null,null,null,null,null,null,null,null,null,null,"Q58 Hertfordshire And The South Midlands Area Team","HERTFORDSHIRE PARTNERSHIP UNIVERSITY NHS FOUNDATION TRUST","Secure & Forensic Services"]
[null,null,null,null,null,null,null,null,null,null,null,null,null,null,null,null,null,null,null,null,null,null,null,null,null,null,"Q58 Hertfordshire And The South Midlands Area Team","HERTFORDSHIRE PARTNERSHIP UNIVERSITY NHS FOUNDATION TRUST","Specialist Services"]
[null,null,null,null,null,null,null,null,null,null,null,null,null,null,null,null,null,null,null,null,null,null,null,null,null,null,"Q58 Hertfordshire And The South Midlands Area Team","NORTHAMPTONSHIRE HEALTHCARE NHS FOUNDATION TRUST","Acute Services"]
[null,null,null,null,null,null,null,null,null,null,null,null,null,null,null,null,null,null,null,null,null,null,null,null,null,null,"Q58 Hertfordshire And The South Midlands Area Team","NORTHAMPTONSHIRE HEALTHCARE NHS FOUNDATION TRUST","Child & Adolescent Mental Health Services"]
[null,null,null,null,null,null,null,null,null,null,null,null,null,null,null,null,null,null,null,null,null,null,null,null,null,null,"Q58 Hertfordshire And The South Midlands Area Team","NORTHAMPTONSHIRE HEALTHCARE NHS FOUNDATION TRUST","Mental Health Other"]
[null,null,null,null,null,null,null,null,null,null,null,null,null,null,null,null,null,null,null,null,null,null,null,null,null,null,"Q58 Hertfordshire And The South Midlands Area Team","NORTHAMPTONSHIRE HEALTHCARE NHS FOUNDATION TRUST","Secondary Care Community Services"]
[null,null,null,null,null,null,null,null,null,null,null,null,null,null,null,null,null,null,null,null,null,null,null,null,null,null,"Q58 Hertfordshire And The South Midlands Area Team","NORTHAMPTONSHIRE HEALTHCARE NHS FOUNDATION TRUST","Secure & Forensic Services"]
[null,null,null,null,null,null,null,null,null,null,null,null,null,null,null,null,null,null,null,null,null,null,null,null,null,null,"Q58 Hertfordshire And The South Midlands Area Team","NORTHAMPTONSHIRE HEALTHCARE NHS FOUNDATION TRUST","Specialist Services"]
[null,null,null,null,null,null,null,null,null,null,null,null,null,null,null,null,null,null,null,null,null,null,null,null,null,null,"Q59 Leicestershire And Lincolnshire Area Team","LEICESTERSHIRE PARTNERSHIP NHS TRUST","Acute Services"]
[null,null,null,null,null,null,null,null,null,null,null,null,null,null,null,null,null,null,null,null,null,null,null,null,null,null,"Q59 Leicestershire And Lincolnshire Area Team","LEICESTERSHIRE PARTNERSHIP NHS TRUST","Child & Adolescent Mental Health Services"]
[null,null,null,null,null,null,null,null,null,null,null,null,null,null,null,null,null,null,null,null,null,null,null,null,null,null,"Q59 Leicestershire And Lincolnshire Area Team","LEICESTERSHIRE PARTNERSHIP NHS TRUST","Mental Health Other"]
[null,null,null,null,null,null,null,null,null,null,null,null,null,null,null,null,null,null,null,null,null,null,null,null,null,null,"Q59 Leicestershire And Lincolnshire Area Team","LEICESTERSHIRE PARTNERSHIP NHS TRUST","Primary Care"]
[null,null,null,null,null,null,null,null,null,null,null,null,null,null,null,null,null,null,null,null,null,null,null,null,null,null,"Q59 Leicestershire And Lincolnshire Area Team","LEICESTERSHIRE PARTNERSHIP NHS TRUST","Secondary Care Community Services"]
[null,null,null,null,null,null,null,null,null,null,null,null,null,null,null,null,null,null,null,null,null,null,null,null,null,null,"Q59 Leicestershire And Lincolnshire Area Team","LEICESTERSHIRE PARTNERSHIP NHS TRUST","Secure & Forensic Services"]
[null,null,null,null,null,null,null,null,null,null,null,null,null,null,null,null,null,null,null,null,null,null,null,null,null,null,"Q59 Leicestershire And Lincolnshire Area Team","LEICESTERSHIRE PARTNERSHIP NHS TRUST","Specialist Services"]
[null,null,null,null,null,null,null,null,null,null,null,null,null,null,null,null,null,null,null,null,null,null,null,null,null,null,"Q59 Leicestershire And Lincolnshire Area Team","LINCOLNSHIRE PARTNERSHIP NHS FOUNDATION TRUST","Acute Services"]
[null,null,null,null,null,null,null,null,null,null,null,null,null,null,null,null,null,null,null,null,null,null,null,null,null,null,"Q59 Leicestershire And Lincolnshire Area Team","LINCOLNSHIRE PARTNERSHIP NHS FOUNDATION TRUST","Child & Adolescent Mental Health Services"]
[null,null,null,null,null,null,null,null,null,null,null,null,null,null,null,null,null,null,null,null,null,null,null,null,null,null,"Q59 Leicestershire And Lincolnshire Area Team","LINCOLNSHIRE PARTNERSHIP NHS FOUNDATION TRUST","Mental Health Other"]
[null,null,null,null,null,null,null,null,null,null,null,null,null,null,null,null,null,null,null,null,null,null,null,null,null,null,"Q59 Leicestershire And Lincolnshire Area Team","LINCOLNSHIRE PARTNERSHIP NHS FOUNDATION TRUST","Primary Care"]
[null,null,null,null,null,null,null,null,null,null,null,null,null,null,null,null,null,null,null,null,null,null,null,null,null,null,"Q59 Leicestershire And Lincolnshire Area Team","LINCOLNSHIRE PARTNERSHIP NHS FOUNDATION TRUST","Secondary Care Community Services"]
[null,null,null,null,null,null,null,null,null,null,null,null,null,null,null,null,null,null,null,null,null,null,null,null,null,null,"Q59 Leicestershire And Lincolnshire Area Team","LINCOLNSHIRE PARTNERSHIP NHS FOUNDATION TRUST","Secure & Forensic Services"]
[null,null,null,null,null,null,null,null,null,null,null,null,null,null,null,null,null,null,null,null,null,null,null,null,null,null,"Q59 Leicestershire And Lincolnshire Area Team","LINCOLNSHIRE PARTNERSHIP NHS FOUNDATION TRUST","Specialist Services"]
[null,null,null,null,null,null,null,null,null,null,null,null,null,null,null,null,null,null,null,null,null,null,null,null,null,null,"Q60 Shropshire And Staffordshire Area Team","NORTH STAFFORDSHIRE COMBINED HEALTHCARE NHS TRUST","Acute Services"]
[null,null,null,null,null,null,null,null,null,null,null,null,null,null,null,null,null,null,null,null,null,null,null,null,null,null,"Q60 Shropshire And Staffordshire Area Team","NORTH STAFFORDSHIRE COMBINED HEALTHCARE NHS TRUST","Secondary Care Community Services"]
[null,null,null,null,null,null,null,null,null,null,null,null,null,null,null,null,null,null,null,null,null,null,null,null,null,null,"Q60 Shropshire And Staffordshire Area Team","SHROPSHIRE COMMUNITY HEALTH NHS TRUST","Child & Adolescent Mental Health Services"]
[null,null,null,null,null,null,null,null,null,null,null,null,null,null,null,null,null,null,null,null,null,null,null,null,null,null,"Q60 Shropshire And Staffordshire Area Team","SOUTH STAFFORDSHIRE AND SHROPSHIRE HEALTHCARE NHS FOUNDATION TRUST","Acute Services"]
[null,null,null,null,null,null,null,null,null,null,null,null,null,null,null,null,null,null,null,null,null,null,null,null,null,null,"Q60 Shropshire And Staffordshire Area Team","SOUTH STAFFORDSHIRE AND SHROPSHIRE HEALTHCARE NHS FOUNDATION TRUST","Child & Adolescent Mental Health Services"]
[null,null,null,null,null,null,null,null,null,null,null,null,null,null,null,null,null,null,null,null,null,null,null,null,null,null,"Q60 Shropshire And Staffordshire Area Team","SOUTH STAFFORDSHIRE AND SHROPSHIRE HEALTHCARE NHS FOUNDATION TRUST","Mental Health Other"]
[null,null,null,null,null,null,null,null,null,null,null,null,null,null,null,null,null,null,null,null,null,null,null,null,null,null,"Q60 Shropshire And Staffordshire Area Team","SOUTH STAFFORDSHIRE AND SHROPSHIRE HEALTHCARE NHS FOUNDATION TRUST","Primary Care"]
[null,null,null,null,null,null,null,null,null,null,null,null,null,null,null,null,null,null,null,null,null,null,null,null,null,null,"Q60 Shropshire And Staffordshire Area Team","SOUTH STAFFORDSHIRE AND SHROPSHIRE HEALTHCARE NHS FOUNDATION TRUST","Secondary Care Community Services"]
[null,null,null,null,null,null,null,null,null,null,null,null,null,null,null,null,null,null,null,null,null,null,null,null,null,null,"Q60 Shropshire And Staffordshire Area Team","SOUTH STAFFORDSHIRE AND SHROPSHIRE HEALTHCARE NHS FOUNDATION TRUST","Secure & Forensic Services"]
[null,null,null,null,null,null,null,null,null,null,null,null,null,null,null,null,null,null,null,null,null,null,null,null,null,null,"Q60 Shropshire And Staffordshire Area Team","SOUTH STAFFORDSHIRE AND SHROPSHIRE HEALTHCARE NHS FOUNDATION TRUST","Specialist Services"]
[null,null,null,null,null,null,null,null,null,null,null,null,null,null,null,null,null,null,null,null,null,null,null,null,null,null,"Q64 Bath, Gloucestershire, Swindon And Wiltshire Area Team","2GETHER NHS FOUNDATION TRUST","Acute Services"]
[null,null,null,null,null,null,null,null,null,null,null,null,null,null,null,null,null,null,null,null,null,null,null,null,null,null,"Q64 Bath, Gloucestershire, Swindon And Wiltshire Area Team","2GETHER NHS FOUNDATION TRUST","Primary Care"]
[null,null,null,null,null,null,null,null,null,null,null,null,null,null,null,null,null,null,null,null,null,null,null,null,null,null,"Q64 Bath, Gloucestershire, Swindon And Wiltshire Area Team","2GETHER NHS FOUNDATION TRUST","Secondary Care Community Services"]
[null,null,null,null,null,null,null,null,null,null,null,null,null,null,null,null,null,null,null,null,null,null,null,null,null,null,"Q64 Bath, Gloucestershire, Swindon And Wiltshire Area Team","AVON AND WILTSHIRE MENTAL HEALTH PARTNERSHIP NHS TRUST","Acute Services"]
[null,null,null,null,null,null,null,null,null,null,null,null,null,null,null,null,null,null,null,null,null,null,null,null,null,null,"Q64 Bath, Gloucestershire, Swindon And Wiltshire Area Team","AVON AND WILTSHIRE MENTAL HEALTH PARTNERSHIP NHS TRUST","Mental Health Other"]
[null,null,null,null,null,null,null,null,null,null,null,null,null,null,null,null,null,null,null,null,null,null,null,null,null,null,"Q64 Bath, Gloucestershire, Swindon And Wiltshire Area Team","AVON AND WILTSHIRE MENTAL HEALTH PARTNERSHIP NHS TRUST","Primary Care"]
[null,null,null,null,null,null,null,null,null,null,null,null,null,null,null,null,null,null,null,null,null,null,null,null,null,null,"Q64 Bath, Gloucestershire, Swindon And Wiltshire Area Team","AVON AND WILTSHIRE MENTAL HEALTH PARTNERSHIP NHS TRUST","Secondary Care Community Services"]
[null,null,null,null,null,null,null,null,null,null,null,null,null,null,null,null,null,null,null,null,null,null,null,null,null,null,"Q64 Bath, Gloucestershire, Swindon And Wiltshire Area Team","AVON AND WILTSHIRE MENTAL HEALTH PARTNERSHIP NHS TRUST","Specialist Services"]
[null,null,null,null,null,null,null,null,null,null,null,null,null,null,null,null,null,null,null,null,null,null,null,null,null,null,"Q65 Bristol, North Somerset, Somerset And South Gloucestershire Area Team","SOMERSET PARTNERSHIP NHS FOUNDATION TRUST","Acute Services"]
[null,null,null,null,null,null,null,null,null,null,null,null,null,null,null,null,null,null,null,null,null,null,null,null,null,null,"Q65 Bristol, North Somerset, Somerset And South Gloucestershire Area Team","SOMERSET PARTNERSHIP NHS FOUNDATION TRUST","Mental Health Other"]
[null,null,null,null,null,null,null,null,null,null,null,null,null,null,null,null,null,null,null,null,null,null,null,null,null,null,"Q65 Bristol, North Somerset, Somerset And South Gloucestershire Area Team","SOMERSET PARTNERSHIP NHS FOUNDATION TRUST","Secure & Forensic Services"]
[null,null,null,null,null,null,null,null,null,null,null,null,null,null,null,null,null,null,null,null,null,null,null,null,null,null,"Q66 Devon, Cornwall And Isles Of Scilly Area Team","CORNWALL PARTNERSHIP NHS FOUNDATION TRUST","Acute Services"]
[null,null,null,null,null,null,null,null,null,null,null,null,null,null,null,null,null,null,null,null,null,null,null,null,null,null,"Q66 Devon, Cornwall And Isles Of Scilly Area Team","CORNWALL PARTNERSHIP NHS FOUNDATION TRUST","Secondary Care Community Services"]
[null,null,null,null,null,null,null,null,null,null,null,null,null,null,null,null,null,null,null,null,null,null,null,null,null,null,"Q66 Devon, Cornwall And Isles Of Scilly Area Team","CORNWALL PARTNERSHIP NHS FOUNDATION TRUST","Specialist Services"]
[null,null,null,null,null,null,null,null,null,null,null,null,null,null,null,null,null,null,null,null,null,null,null,null,null,null,"Q66 Devon, Cornwall And Isles Of Scilly Area Team","DEVON PARTNERSHIP NHS TRUST","Acute Services"]
[null,null,null,null,null,null,null,null,null,null,null,null,null,null,null,null,null,null,null,null,null,null,null,null,null,null,"Q66 Devon, Cornwall And Isles Of Scilly Area Team","DEVON PARTNERSHIP NHS TRUST","Primary Care"]
[null,null,null,null,null,null,null,null,null,null,null,null,null,null,null,null,null,null,null,null,null,null,null,null,null,null,"Q66 Devon, Cornwall And Isles Of Scilly Area Team","DEVON PARTNERSHIP NHS TRUST","Secondary Care Community Services"]
[null,null,null,null,null,null,null,null,null,null,null,null,null,null,null,null,null,null,null,null,null,null,null,null,null,null,"Q66 Devon, Cornwall And Isles Of Scilly Area Team","DEVON PARTNERSHIP NHS TRUST","Secure & Forensic Services"]
[null,null,null,null,null,null,null,null,null,null,null,null,null,null,null,null,null,null,null,null,null,null,null,null,null,null,"Q66 Devon, Cornwall And Isles Of Scilly Area Team","DEVON PARTNERSHIP NHS TRUST","Specialist Services"]
[null,null,null,null,null,null,null,null,null,null,null,null,null,null,null,null,null,null,null,null,null,null,null,null,null,null,"Q67 Kent And Medway Area Team","KENT AND MEDWAY NHS AND SOCIAL CARE PARTNERSHIP TRUST","Acute Services"]
[null,null,null,null,null,null,null,null,null,null,null,null,null,null,null,null,null,null,null,null,null,null,null,null,null,null,"Q67 Kent And Medway Area Team","KENT AND MEDWAY NHS AND SOCIAL CARE PARTNERSHIP TRUST","Mental Health Other"]
[null,null,null,null,null,null,null,null,null,null,null,null,null,null,null,null,null,null,null,null,null,null,null,null,null,null,"Q67 Kent And Medway Area Team","KENT AND MEDWAY NHS AND SOCIAL CARE PARTNERSHIP TRUST","Secondary Care Community Services"]
[null,null,null,null,null,null,null,null,null,null,null,null,null,null,null,null,null,null,null,null,null,null,null,null,null,null,"Q67 Kent And Medway Area Team","KENT AND MEDWAY NHS AND SOCIAL CARE PARTNERSHIP TRUST","Specialist Services"]
[null,null,null,null,null,null,null,null,null,null,null,null,null,null,null,null,null,null,null,null,null,null,null,null,null,null,"Q68 Surrey And Sussex Area Team","SURREY AND BORDERS PARTNERSHIP NHS FOUNDATION TRUST","Acute Services"]
[null,null,null,null,null,null,null,null,null,null,null,null,null,null,null,null,null,null,null,null,null,null,null,null,null,null,"Q68 Surrey And Sussex Area Team","SURREY AND BORDERS PARTNERSHIP NHS FOUNDATION TRUST","Child & Adolescent Mental Health Services"]
[null,null,null,null,null,null,null,null,null,null,null,null,null,null,null,null,null,null,null,null,null,null,null,null,null,null,"Q68 Surrey And Sussex Area Team","SURREY AND BORDERS PARTNERSHIP NHS FOUNDATION TRUST","Mental Health Other"]
[null,null,null,null,null,null,null,null,null,null,null,null,null,null,null,null,null,null,null,null,null,null,null,null,null,null,"Q68 Surrey And Sussex Area Team","SURREY AND BORDERS PARTNERSHIP NHS FOUNDATION TRUST","Secondary Care Community Services"]
[null,null,null,null,null,null,null,null,null,null,null,null,null,null,null,null,null,null,null,null,null,null,null,null,null,null,"Q68 Surrey And Sussex Area Team","SURREY AND BORDERS PARTNERSHIP NHS FOUNDATION TRUST","Specialist Services"]
[null,null,null,null,null,null,null,null,null,null,null,null,null,null,null,null,null,null,null,null,null,null,null,null,null,null,"Q68 Surrey And Sussex Area Team","SUSSEX PARTNERSHIP NHS FOUNDATION TRUST","Acute Services"]
[null,null,null,null,null,null,null,null,null,null,null,null,null,null,null,null,null,null,null,null,null,null,null,null,null,null,"Q68 Surrey And Sussex Area Team","SUSSEX PARTNERSHIP NHS FOUNDATION TRUST","Child & Adolescent Mental Health Services"]
[null,null,null,null,null,null,null,null,null,null,null,null,null,null,null,null,null,null,null,null,null,null,null,null,null,null,"Q68 Surrey And Sussex Area Team","SUSSEX PARTNERSHIP NHS FOUNDATION TRUST","Primary Care"]
[null,null,null,null,null,null,null,null,null,null,null,null,null,null,null,null,null,null,null,null,null,null,null,null,null,null,"Q68 Surrey And Sussex Area Team","SUSSEX PARTNERSHIP NHS FOUNDATION TRUST","Secondary Care Community Services"]
[null,null,null,null,null,null,null,null,null,null,null,null,null,null,null,null,null,null,null,null,null,null,null,null,null,null,"Q68 Surrey And Sussex Area Team","SUSSEX PARTNERSHIP NHS FOUNDATION TRUST","Secure & Forensic Services"]
[null,null,null,null,null,null,null,null,null,null,null,null,null,null,null,null,null,null,null,null,null,null,null,null,null,null,"Q68 Surrey And Sussex Area Team","SUSSEX PARTNERSHIP NHS FOUNDATION TRUST","Specialist Services"]
[null,null,null,null,null,null,null,null,null,null,null,null,null,null,null,null,null,null,null,null,null,null,null,null,null,null,"Q69 Thames Valley Area Team","BERKSHIRE HEALTHCARE NHS FOUNDATION TRUST","Acute Services"]
[null,null,null,null,null,null,null,null,null,null,null,null,null,null,null,null,null,null,null,null,null,null,null,null,null,null,"Q69 Thames Valley Area Team","BERKSHIRE HEALTHCARE NHS FOUNDATION TRUST","Primary Care"]
[null,null,null,null,null,null,null,null,null,null,null,null,null,null,null,null,null,null,null,null,null,null,null,null,null,null,"Q69 Thames Valley Area Team","BERKSHIRE HEALTHCARE NHS FOUNDATION TRUST","Specialist Services"]
[null,null,null,null,null,null,null,null,null,null,null,null,null,null,null,null,null,null,null,null,null,null,null,null,null,null,"Q69 Thames Valley Area Team","OXFORD HEALTH NHS FOUNDATION TRUST","Acute Services"]
[null,null,null,null,null,null,null,null,null,null,null,null,null,null,null,null,null,null,null,null,null,null,null,null,null,null,"Q69 Thames Valley Area Team","OXFORD HEALTH NHS FOUNDATION TRUST","Child & Adolescent Mental Health Services"]
[null,null,null,null,null,null,null,null,null,null,null,null,null,null,null,null,null,null,null,null,null,null,null,null,null,null,"Q69 Thames Valley Area Team","OXFORD HEALTH NHS FOUNDATION TRUST","Primary Care"]
[null,null,null,null,null,null,null,null,null,null,null,null,null,null,null,null,null,null,null,null,null,null,null,null,null,null,"Q69 Thames Valley Area Team","OXFORD HEALTH NHS FOUNDATION TRUST","Secondary Care Community Services"]
[null,null,null,null,null,null,null,null,null,null,null,null,null,null,null,null,null,null,null,null,null,null,null,null,null,null,"Q70 Wessex Area Team","DORSET HEALTHCARE UNIVERSITY NHS FOUNDATION TRUST","Acute Services"]
[null,null,null,null,null,null,null,null,null,null,null,null,null,null,null,null,null,null,null,null,null,null,null,null,null,null,"Q70 Wessex Area Team","DORSET HEALTHCARE UNIVERSITY NHS FOUNDATION TRUST","Mental Health Other"]
[null,null,null,null,null,null,null,null,null,null,null,null,null,null,null,null,null,null,null,null,null,null,null,null,null,null,"Q70 Wessex Area Team","DORSET HEALTHCARE UNIVERSITY NHS FOUNDATION TRUST","Primary Care"]
[null,null,null,null,null,null,null,null,null,null,null,null,null,null,null,null,null,null,null,null,null,null,null,null,null,null,"Q70 Wessex Area Team","DORSET HEALTHCARE UNIVERSITY NHS FOUNDATION TRUST","Secondary Care Community Services"]
[null,null,null,null,null,null,null,null,null,null,null,null,null,null,null,null,null,null,null,null,null,null,null,null,null,null,"Q70 Wessex Area Team","DORSET HEALTHCARE UNIVERSITY NHS FOUNDATION TRUST","Specialist Services"]
[null,null,null,null,null,null,null,null,null,null,null,null,null,null,null,null,null,null,null,null,null,null,null,null,null,null,"Q70 Wessex Area Team","ISLE OF WIGHT NHS TRUST","Acute Services"]
[null,null,null,null,null,null,null,null,null,null,null,null,null,null,null,null,null,null,null,null,null,null,null,null,null,null,"Q70 Wessex Area Team","ISLE OF WIGHT NHS TRUST","Secondary Care Community Services"]
[null,null,null,null,null,null,null,null,null,null,null,null,null,null,null,null,null,null,null,null,null,null,null,null,null,null,"Q70 Wessex Area Team","SOLENT NHS TRUST","Acute Services"]
[null,null,null,null,null,null,null,null,null,null,null,null,null,null,null,null,null,null,null,null,null,null,null,null,null,null,"Q70 Wessex Area Team","SOLENT NHS TRUST","Child & Adolescent Mental Health Services"]
[null,null,null,null,null,null,null,null,null,null,null,null,null,null,null,null,null,null,null,null,null,null,null,null,null,null,"Q70 Wessex Area Team","SOLENT NHS TRUST","Mental Health Other"]
[null,null,null,null,null,null,null,null,null,null,null,null,null,null,null,null,null,null,null,null,null,null,null,null,null,null,"Q70 Wessex Area Team","SOLENT NHS TRUST","Secondary Care Community Services"]
[null,null,null,null,null,null,null,null,null,null,null,null,null,null,null,null,null,null,null,null,null,null,null,null,null,null,"Q70 Wessex Area Team","SOUTHERN HEALTH NHS FOUNDATION TRUST","Acute Services"]
[null,null,null,null,null,null,null,null,null,null,null,null,null,null,null,null,null,null,null,null,null,null,null,null,null,null,"Q70 Wessex Area Team","SOUTHERN HEALTH NHS FOUNDATION TRUST","Mental Health Other"]
[null,null,null,null,null,null,null,null,null,null,null,null,null,null,null,null,null,null,null,null,null,null,null,null,null,null,"Q70 Wessex Area Team","SOUTHERN HEALTH NHS FOUNDATION TRUST","Primary Care"]
[null,null,null,null,null,null,null,null,null,null,null,null,null,null,null,null,null,null,null,null,null,null,null,null,null,null,"Q70 Wessex Area Team","SOUTHERN HEALTH NHS FOUNDATION TRUST","Secondary Care Community Services"]
[null,null,null,null,null,null,null,null,null,null,null,null,null,null,null,null,null,null,null,null,null,null,null,null,null,null,"Q70 Wessex Area Team","SOUTHERN HEALTH NHS FOUNDATION TRUST","Secure & Forensic Services"]
[null,null,null,null,null,null,null,null,null,null,null,null,null,null,null,null,null,null,null,null,null,null,null,null,null,null,"Q71 London Area Team","BARNET, ENFIELD AND HARINGEY MENTAL HEALTH NHS TRUST","Acute Services"]
[null,null,null,null,null,null,null,null,null,null,null,null,null,null,null,null,null,null,null,null,null,null,null,null,null,null,"Q71 London Area Team","BARNET, ENFIELD AND HARINGEY MENTAL HEALTH NHS TRUST","Child & Adolescent Mental Health Services"]
[null,null,null,null,null,null,null,null,null,null,null,null,null,null,null,null,null,null,null,null,null,null,null,null,null,null,"Q71 London Area Team","BARNET, ENFIELD AND HARINGEY MENTAL HEALTH NHS TRUST","Mental Health Other"]
[null,null,null,null,null,null,null,null,null,null,null,null,null,null,null,null,null,null,null,null,null,null,null,null,null,null,"Q71 London Area Team","BARNET, ENFIELD AND HARINGEY MENTAL HEALTH NHS TRUST","Secondary Care Community Services"]
[null,null,null,null,null,null,null,null,null,null,null,null,null,null,null,null,null,null,null,null,null,null,null,null,null,null,"Q71 London Area Team","BARNET, ENFIELD AND HARINGEY MENTAL HEALTH NHS TRUST","Secure & Forensic Services"]
[null,null,null,null,null,null,null,null,null,null,null,null,null,null,null,null,null,null,null,null,null,null,null,null,null,null,"Q71 London Area Team","BARNET, ENFIELD AND HARINGEY MENTAL HEALTH NHS TRUST","Specialist Services"]
[null,null,null,null,null,null,null,null,null,null,null,null,null,null,null,null,null,null,null,null,null,null,null,null,null,null,"Q71 London Area Team","CAMDEN AND ISLINGTON NHS FOUNDATION TRUST","Secondary Care Community Services"]
[null,null,null,null,null,null,null,null,null,null,null,null,null,null,null,null,null,null,null,null,null,null,null,null,null,null,"Q71 London Area Team","CAMDEN AND ISLINGTON NHS FOUNDATION TRUST","Specialist Services"]
[null,null,null,null,null,null,null,null,null,null,null,null,null,null,null,null,null,null,null,null,null,null,null,null,null,null,"Q71 London Area Team","CENTRAL AND NORTH WEST LONDON NHS FOUNDATION TRUST","Acute Services"]
[null,null,null,null,null,null,null,null,null,null,null,null,null,null,null,null,null,null,null,null,null,null,null,null,null,null,"Q71 London Area Team","CENTRAL AND NORTH WEST LONDON NHS FOUNDATION TRUST","Child & Adolescent Mental Health Services"]
[null,null,null,null,null,null,null,null,null,null,null,null,null,null,null,null,null,null,null,null,null,null,null,null,null,null,"Q71 London Area Team","CENTRAL AND NORTH WEST LONDON NHS FOUNDATION TRUST","Mental Health Other"]
[null,null,null,null,null,null,null,null,null,null,null,null,null,null,null,null,null,null,null,null,null,null,null,null,null,null,"Q71 London Area Team","CENTRAL AND NORTH WEST LONDON NHS FOUNDATION TRUST","Primary Care"]
[null,null,null,null,null,null,null,null,null,null,null,null,null,null,null,null,null,null,null,null,null,null,null,null,null,null,"Q71 London Area Team","CENTRAL AND NORTH WEST LONDON NHS FOUNDATION TRUST","Secondary Care Community Services"]
[null,null,null,null,null,null,null,null,null,null,null,null,null,null,null,null,null,null,null,null,null,null,null,null,null,null,"Q71 London Area Team","CENTRAL AND NORTH WEST LONDON NHS FOUNDATION TRUST","Specialist Services"]
[null,null,null,null,null,null,null,null,null,null,null,null,null,null,null,null,null,null,null,null,null,null,null,null,null,null,"Q71 London Area Team","EAST LONDON NHS FOUNDATION TRUST","Acute Services"]
[null,null,null,null,null,null,null,null,null,null,null,null,null,null,null,null,null,null,null,null,null,null,null,null,null,null,"Q71 London Area Team","EAST LONDON NHS FOUNDATION TRUST","Specialist Services"]
[null,null,null,null,null,null,null,null,null,null,null,null,null,null,null,null,null,null,null,null,null,null,null,null,null,null,"Q71 London Area Team","NORTH EAST LONDON NHS FOUNDATION TRUST","Acute Services"]
[null,null,null,null,null,null,null,null,null,null,null,null,null,null,null,null,null,null,null,null,null,null,null,null,null,null,"Q71 London Area Team","NORTH EAST LONDON NHS FOUNDATION TRUST","Child & Adolescent Mental Health Services"]
[null,null,null,null,null,null,null,null,null,null,null,null,null,null,null,null,null,null,null,null,null,null,null,null,null,null,"Q71 London Area Team","NORTH EAST LONDON NHS FOUNDATION TRUST","Primary Care"]
[null,null,null,null,null,null,null,null,null,null,null,null,null,null,null,null,null,null,null,null,null,null,null,null,null,null,"Q71 London Area Team","NORTH EAST LONDON NHS FOUNDATION TRUST","Secondary Care Community Services"]
[null,null,null,null,null,null,null,null,null,null,null,null,null,null,null,null,null,null,null,null,null,null,null,null,null,null,"Q71 London Area Team","NORTH EAST LONDON NHS FOUNDATION TRUST","Specialist Services"]
[null,null,null,null,null,null,null,null,null,null,null,null,null,null,null,null,null,null,null,null,null,null,null,null,null,null,"Q71 London Area Team","OXLEAS NHS FOUNDATION TRUST","Acute Services"]
[null,null,null,null,null,null,null,null,null,null,null,null,null,null,null,null,null,null,null,null,null,null,null,null,null,null,"Q71 London Area Team","OXLEAS NHS FOUNDATION TRUST","Mental Health Other"]
[null,null,null,null,null,null,null,null,null,null,null,null,null,null,null,null,null,null,null,null,null,null,null,null,null,null,"Q71 London Area Team","OXLEAS NHS FOUNDATION TRUST","Secondary Care Community Services"]
[null,null,null,null,null,null,null,null,null,null,null,null,null,null,null,null,null,null,null,null,null,null,null,null,null,null,"Q71 London Area Team","OXLEAS NHS FOUNDATION TRUST","Secure & Forensic Services"]
[null,null,null,null,null,null,null,null,null,null,null,null,null,null,null,null,null,null,null,null,null,null,null,null,null,null,"Q71 London Area Team","SOUTH LONDON AND MAUDSLEY NHS FOUNDATION TRUST","Acute Services"]
[null,null,null,null,null,null,null,null,null,null,null,null,null,null,null,null,null,null,null,null,null,null,null,null,null,null,"Q71 London Area Team","SOUTH LONDON AND MAUDSLEY NHS FOUNDATION TRUST","Child & Adolescent Mental Health Services"]
[null,null,null,null,null,null,null,null,null,null,null,null,null,null,null,null,null,null,null,null,null,null,null,null,null,null,"Q71 London Area Team","SOUTH LONDON AND MAUDSLEY NHS FOUNDATION TRUST","Mental Health Other"]
[null,null,null,null,null,null,null,null,null,null,null,null,null,null,null,null,null,null,null,null,null,null,null,null,null,null,"Q71 London Area Team","SOUTH LONDON AND MAUDSLEY NHS FOUNDATION TRUST","Primary Care"]
[null,null,null,null,null,null,null,null,null,null,null,null,null,null,null,null,null,null,null,null,null,null,null,null,null,null,"Q71 London Area Team","SOUTH LONDON AND MAUDSLEY NHS FOUNDATION TRUST","Secondary Care Community Services"]
[null,null,null,null,null,null,null,null,null,null,null,null,null,null,null,null,null,null,null,null,null,null,null,null,null,null,"Q71 London Area Team","SOUTH LONDON AND MAUDSLEY NHS FOUNDATION TRUST","Secure & Forensic Services"]
[null,null,null,null,null,null,null,null,null,null,null,null,null,null,null,null,null,null,null,null,null,null,null,null,null,null,"Q71 London Area Team","SOUTH LONDON AND MAUDSLEY NHS FOUNDATION TRUST","Specialist Services"]
[null,null,null,null,null,null,null,null,null,null,null,null,null,null,null,null,null,null,null,null,null,null,null,null,null,null,"Q71 London Area Team","SOUTH WEST LONDON AND ST GEORGE'S MENTAL HEALTH NHS TRUST","Acute Services"]
[null,null,null,null,null,null,null,null,null,null,null,null,null,null,null,null,null,null,null,null,null,null,null,null,null,null,"Q71 London Area Team","SOUTH WEST LONDON AND ST GEORGE'S MENTAL HEALTH NHS TRUST","Secondary Care Community Services"]
[null,null,null,null,null,null,null,null,null,null,null,null,null,null,null,null,null,null,null,null,null,null,null,null,null,null,"Q71 London Area Team","SOUTH WEST LONDON AND ST GEORGE'S MENTAL HEALTH NHS TRUST","Secure & Forensic Services"]
[null,null,null,null,null,null,null,null,null,null,null,null,null,null,null,null,null,null,null,null,null,null,null,null,null,null,"Q71 London Area Team","SOUTH WEST LONDON AND ST GEORGE'S MENTAL HEALTH NHS TRUST","Specialist Services"]
[null,null,null,null,null,null,null,null,null,null,null,null,null,null,null,null,null,null,null,null,null,null,null,null,null,null,"Q71 London Area Team","TAVISTOCK AND PORTMAN NHS FOUNDATION TRUST","Mental Health Other"]
[null,null,null,null,null,null,null,null,null,null,null,null,null,null,null,null,null,null,null,null,null,null,null,null,null,null,"Q71 London Area Team","UNIVERSITY COLLEGE LONDON HOSPITALS NHS FOUNDATION TRUST","Specialist Services"]
[null,null,null,null,null,null,null,null,null,null,null,null,null,null,null,null,null,null,null,null,null,null,null,null,null,null,"Q71 London Area Team","WEST LONDON MENTAL HEALTH NHS TRUST","Acute Services"]
[null,null,null,null,null,null,null,null,null,null,null,null,null,null,null,null,null,null,null,null,null,null,null,null,null,null,"Q71 London Area Team","WEST LONDON MENTAL HEALTH NHS TRUST","Child & Adolescent Mental Health Services"]
[null,null,null,null,null,null,null,null,null,null,null,null,null,null,null,null,null,null,null,null,null,null,null,null,null,null,"Q71 London Area Team","WEST LONDON MENTAL HEALTH NHS TRUST","Primary Care"]
[null,null,null,null,null,null,null,null,null,null,null,null,null,null,null,null,null,null,null,null,null,null,null,null,null,null,"Q71 London Area Team","WEST LONDON MENTAL HEALTH NHS TRUST","Secondary Care Community Services"]
[null,null,null,null,null,null,null,null,null,null,null,null,null,null,null,null,null,null,null,null,null,null,null,null,null,null,"Q71 London Area Team","WEST LONDON MENTAL HEALTH NHS TRUST","Secure & Forensic Services"]